{"text_format":"1","workbook":"xlsx","n_sheets":3,"sheets":["Intro","DCPs","Dataset"],"not_rendered":{"charts":0,"images":6,"macros":1,"external_links":0,"defined_names":13,"comments":0,"pivot_tables":1},"unopened":[],"bounds":{"document_bytes":16777216,"sheet_cells":100000,"rows_first":2000,"rows_last":500,"rows_between":2000,"halvings":0,"cell_chars":16384,"cell_head_chars":4096},"cells_cut":0,"cells_raw":0,"read":"whole","date_system":"1900"}

{"sheet":"Intro","index":0,"n_rows":0,"n_cols":0,"rows_kept":0,"cut":false,"hidden":false,"merged":[]}

{"sheet":"DCPs","index":1,"n_rows":248,"n_cols":12,"rows_kept":248,"cut":false,"hidden":false,"merged":[]}
[]
[]
[]
[null,null,null,null,null,null,"Migration wave","Connection mode","INSTITUTION","CSD/NCB","BIC"]
[null,null,null,null,null,null," "]
[null,null,null,null,null,null,"Migration wave","Connection mode","Institution ","CSD/NCB","BICs","Total"]
[null,null,null,null,null,null,"wave 1","A2A","Banco Popolare Società Cooperativa","Banca d'Italia","BAPPIT22",1]
[null,null,null,null,null,null,null,null,"BNP Paribas Securities Services","Banque de France","PARBFRPPXXX",1]
[null,null,null,null,null,null,null,null,"BNP Paribas Securities Services, S.C.A.","Monte Titoli S.p.A.","PARBITMMXXX - PARBITMM001 - PARBITMM002 - PARBITMM003 - PARBITMM004 - PARBITMM005 - PARBITMM006 - PARBITMM007 - PARBITMM008 - PARBITMM009 - PARBITMM010",1]
[null,null,null,null,null,null,null,null,"Cassa Centrale Raiffeisen dell’Alto Adige S.p.A.","Banca d'Italia","RZSBIT2B",1]
[null,null,null,null,null,null,null,null,"Citibank Europe plc, Dublin – Romania Branch","Depozitarul Central S.A.","CITIROBUXXX",1]
[null,null,null,null,null,null,null,null,"Citibank International Plc. Greece (branch)","Bank of Greece","CITIGRAASEC ",1]
[null,null,null,null,null,null,null,null,null,"Bank of Greece Securities Settlement System (BOGS)","CITIGRAAXXX",1]
[null,null,null,null,null,null,null,null,"Citibank N.A., London branch","SIX SIS Ltd.","CITIGB2L",1]
[null,null,null,null,null,null,null,null,"Citibank N.A., Milan Branch","Banca d'Italia","CITIITMXSEC",1]
[null,null,null,null,null,null,null,null,null,"Monte Titoli S.p.A.","CITIITMXSEC",1]
[null,null,null,null,null,null,null,null,"Commerzbank","Deutsche Bundesbank","COBADEFFXXX",1]
[null,null,null,null,null,null,null,null,"Deutsche Bank AG","Deutsche Bundesbank","DEUTDEFFXXX",1]
[null,null,null,null,null,null,null,null,null,"Monte Titoli S.p.A.","DEUTDEFFXXX",1]
[null,null,null,null,null,null,null,null,"European Central Counterparty N.V.","De Nederlandsche Bank","EMCFNL2A",1]
[null,null,null,null,null,null,null,null,null,"Monte Titoli S.p.A.","EMCFNL2AXXX",1]
[null,null,null,null,null,null,null,null,"Iccrea Banca S.p.A.","Banca d'Italia","ICRAITRR",1]
[null,null,null,null,null,null,null,null,null,"Monte Titoli S.p.A.","ICRAITRRXXX",1]
[null,null,null,null,null,null,null,null,"Intesa Sanpaolo S.p.A.","Banca d'Italia","BCITITMM",1]
[null,null,null,null,null,null,null,null,null,"Monte Titoli S.p.A.","BCITITMMXXX - BCITITM1T01 - BCITITMMK70",1]
[null,null,null,null,null,null,null,null,"Istituto Centrale delle Banche Popolari Italiane S.p.A.","Banca d'Italia","CIPBITMM",1]
[null,null,null,null,null,null,null,null,null,"Monte Titoli S.p.A.","CIPBITMMXXX",1]
[null,null,null,null,null,null,null,null,"LCH.Clearnet, SA","Monte Titoli S.p.A.","BACPFRPPXXX",1]
[null,null,null,null,null,null,null,null,"Monte dei Paschi di Siena","Banca d'Italia","PASCITMM",1]
[null,null,null,null,null,null,null,null,"Morgan Stanley Bank","Deutsche Bundesbank","MSFFDEFPGCP - MSFFDEFPXXX ",1]
[null,null,null,null,null,null,null,null,"Société Générale","Banque de France","SOGEFRPPTIT ",1]
[null,null,null,null,null,null,null,null,"Société Générale Securities Services S.p.A.","Banca d'Italia","TWOSITMM",1]
[null,null,null,null,null,null,null,null,null,"Monte Titoli S.p.A.","TWOSITMMXXX - TWOSITM1BBH - TWOSITM1UCI - TWOSITM1CFE - TWOSITM1CHI - TWOSITM1CIB - TWOSITM1FCN - TWOSITM1FMB - TWOSITM1PAR - TWOSITM1RAV - TWOSITM1RIM - TWOSITM1SGL - TWOSITM1SMI - TWOSITM1BPL - TWOSITM1SGP",1]
[null,null,null,null,null,null,null,null,null,"SIX SIS Ltd.","TWOSITMMXXX",1]
[null,null,null,null,null,null,null,null,"The Bank of New York Mellon SA/NV","Monte Titoli S.p.A.","IRVTBEBBDCP - BNYMDEFXXXX",1]
[null,null,null,null,null,null,null,null,"The Bank of New York Mellon SA/NV (Frankfurt branch)","Deutsche Bundesbank","BNYMDEFXXXX",1]
[null,null,null,null,null,null,null,null,"UBS Deutschland AG","Deutsche Bundesbank","UBSWDEFFXXX",1]
[null,null,null,null,null,null,null,null,"Unicredit S.p.A.","Banca d'Italia","UNCRITMM",1]
[null,null,null,null,null,null,null,"U2A","Banco Sabadell","Banco de España","BSABESBBXXX",1]
[null,null,null,null,null,null,null,null,"Bank of Greece","Bank of Greece Securities Settlement System (BOGS)","BNGRGRAA072",1]
[null,null,null,null,null,null,null,null,"Cariparma Crédit Agricole","Banca d'Italia","CRPPIT2P",1]
[null,null,null,null,null,null,null,null,"Depozitarul Central S.A.","Banca Nationala Romaniei","DECNROBU",1]
[null,null,null,null,null,null,null,null,"LCH.Clearnet","Banque de France","BACPFRPPXXX",1]
[null,null,null,null,null,null,null,null,"Parel S.A.","Monte Titoli S.p.A.","PAREFRPPXXX - PAREFRPPKCH",1]
[null,null,null,null,null,null,null,null,"Swiss Euro Clearing Bank GmbH","Deutsche Bundesbank","SECGDEFFEUR",1]
[null,null,null,null,null,null,"wave 2","A2A","ABN AMRO Clearing Bank N.V.","Monte Titoli S.p.A.","(blank)",1]
[null,null,null,null,null,null,null,null,null,"National Bank of Belgium Securities Settlement System (NBB-SSS)","ABNCNL2AXXX",1]
[null,null,null,null,null,null,null,null,"Agência de gestão da tesouraria e da dívida pública, IGCP-EPE","Banco de Portugal","IGCPPTPL",1]
[null,null,null,null,null,null,null,null,"Banco BIC Portugal","Banco de Portugal","BPNPPTPL",1]
[null,null,null,null,null,null,null,null,"Banco BPI SA","Banco de Portugal","BBPIPTPL",1]
[null,null,null,null,null,null,null,null,"Banco Comercial Portugues, S.A.","Banco de Portugal","BCOMPTPL",1]
[null,null,null,null,null,null,null,null,"Banco de Investimento Global, S.A.","Banco de Portugal","BDIGPTPL",1]
[null,null,null,null,null,null,null,null,"Banco Invest, SA","Banco de Portugal","IVVSPTPL",1]
[null,null,null,null,null,null,null,null,"Banco Popular Portugal, S.A.","Banco de Portugal","CRBNPTPL",1]
[null,null,null,null,null,null,null,null,"Banco Portugues de Gestao","Banco de Portugal","BPGPPTPL",1]
[null,null,null,null,null,null,null,null,"Banco Santander Totta, S.A.","Banco de Portugal","TOTAPTPL",1]
[null,null,null,null,null,null,null,null,"BANIF - Banco de Investimento, SA","Banco de Portugal","BNFIPTPL",1]
[null,null,null,null,null,null,null,null,"Belfius Bank","National Bank of Belgium","GKCCBEBB",1]
[null,null,null,null,null,null,null,null,"BNP Paribas FORTIS","National Bank of Belgium","GEBABEBB",1]
[null,null,null,null,null,null,null,null,"BNP Paribas Securities Services, S.C.A.","Interbolsa","PARBFRPPXXX",1]
[null,null,null,null,null,null,null,null,null,"National Bank of Belgium Securities Settlement System (NBB-SSS)","PARBFRPPXXX",1]
[null,null,null,null,null,null,null,null,"CACEIS Bank France","Banque de France","ISAEFRPPXXX",1]
[null,null,null,null,null,null,null,null,null,"National Bank of Belgium Securities Settlement System (NBB-SSS)","ISAEFRPPXXX",1]
[null,null,null,null,null,null,null,null,"JP Morgan","Deutsche Bundesbank","CHASDEFX",1]
[null,null,null,null,null,null,null,null,"Caixa Banco de Investimento, S.A.","Banco de Portugal","CXBIPTPL",1]
[null,null,null,null,null,null,null,null,"CAIXA Central de Credito Agricola Mútuo","Banco de Portugal","CCCMPTPL",1]
[null,null,null,null,null,null,null,null,"CAIXA Económica Montepio Geral","Banco de Portugal","MPIOPTPL",1]
[null,null,null,null,null,null,null,null,"CAIXA Geral de DepositoS, S.A.","Banco de Portugal","CGDIPTPL",1]
[null,null,null,null,null,null,null,null,"Citibank Europe plc","Interbolsa","CITIPTPXXXX",1]
[null,null,null,null,null,null,null,null,"Citibank Europe Plc. ","National Bank of Belgium Securities Settlement System (NBB-SSS)","CITTGB2LXXX ",1]
[null,null,null,null,null,null,null,null,"Citibank Internacional - Sucursal em Port.","Banco de Portugal","CITIPTPXSEC",1]
[null,null,null,null,null,null,null,null,"Deutsche Bank AG","Interbolsa","DEUTDEFFXXX",1]
[null,null,null,null,null,null,null,null,null,"National Bank of Belgium Securities Settlement System (NBB-SSS)","DEUTDEFFCUS",1]
[null,null,null,null,null,null,null,null,"EuroCCP N.V.","Interbolsa","EMCFNL2AXXX",1]
[null,null,null,null,null,null,null,null,"Euroclear Bank SA/NV","Interbolsa","MGTCBEBEECL",1]
[null,null,null,null,null,null,null,null,null,"National Bank of Belgium","MGTCBEBE",1]
[null,null,null,null,null,null,null,null,null,"National Bank of Belgium Securities Settlement System (NBB-SSS)","MGTCBEBEECL",1]
[null,null,null,null,null,null,null,null,"Haitong Bank S.A.","Banco de Portugal","ESSIPTPL",1]
[null,null,null,null,null,null,null,null,"ING Belgium","National Bank of Belgium","BBRUBEBB",1]
[null,null,null,null,null,null,null,null,"KBC Bank","National Bank of Belgium","KREDBEBB",1]
[null,null,null,null,null,null,null,null,"KBC Securities","National Bank of Belgium","KBSEBE22",1]
[null,null,null,null,null,null,null,null,"LCH.Clearnet, SA","Interbolsa","BACPFRPPXXX",1]
[null,null,null,null,null,null,null,null,null,"National Bank of Belgium Securities Settlement System (NBB-SSS)","BACPFRPPXXX - BACPFRPPBRU",1]
[null,null,null,null,null,null,null,null,"Northern Trust","Banque Centrale du Luxembourg","CNORLULXTGT",1]
[null,null,null,null,null,null,null,null,"Novo Banco, S.A.","Banco de Portugal","BESCPTPL",1]
[null,null,null,null,null,null,null,"U2A","ABN AMRO Bank N.V.","De Nederlandsche Bank","ABNANL2AXXX",1]
[null,null,null,null,null,null,null,null,"Banco Bilbao Vizcaya Argentaria S.A.","Banco de España","BBVAESMMXXX",1]
[null,null,null,null,null,null,null,null,"Banco Santander Totta, S.A.","Interbolsa","TOTAPTPLXXX",1]
[null,null,null,null,null,null,null,null,"Caixa Banco de Investimento, S.A.","Interbolsa","CXBIPTPLXXX",1]
[null,null,null,null,null,null,null,null,"Clearstream Banking S.A. (CBL)","Banque Centrale du Luxembourg","CEDELULL",1]
[null,null,null,null,null,null,null,null,"HSBC France","Banque de France","CCFRFRPPXXX ",1]
[null,null,null,null,null,null,null,null,"Interbolsa","Banco de Portugal","IBLSPTPP",1]
[null,null,null,null,null,null,null,null,"National Bank of Belgium","National Bank of Belgium Securities Settlement System (NBB-SSS)","ECMSBEBBCCB",1]
[null,null,null,null,null,null,"wave 3","A2A","ABN AMRO Clearing Bank N.V.","De Nederlandsche Bank","ABNCNL2A",1]
[null,null,null,null,null,null,null,null,null,"Euroclear ESES","ABNCNL2A",1]
[null,null,null,null,null,null,null,null,"BNP Paribas Securities Services, S.C.A.","Euroclear ESES","PARBFRPP",1]
[null,null,null,null,null,null,null,null,"CACEIS Bank Deutschland GmbH","Deutsche Bundesbank","FMBKDEMM",1]
[null,null,null,null,null,null,null,null,"CACEIS Bank France","Euroclear ESES","ISAEFRPP",1]
[null,null,null,null,null,null,null,null,"Citibank Europe plc","Euroclear ESES","CITTGB2L",1]
[null,null,null,null,null,null,null,null,"Citibank International Plc., Paris","Banque de France","CITIFRPPSEC",1]
[null,null,null,null,null,null,null,null,"Clearstream Banking S.A. (CBL)","Banque Centrale du Luxembourg","CEDELULL",1]
[null,null,null,null,null,null,null,null,null,"Monte Titoli S.p.A.","CEDELULLXXX",1]
[null,null,null,null,null,null,null,null,"Crédit Agricole CIB","Banque de France","BSUIFRPPDMA ",1]
[null,null,null,null,null,null,null,null,"Crédit Agricole SA","Banque de France","AGRIFRPPXXX",1]
[null,null,null,null,null,null,null,null,null,"Euroclear ESES","AGRIFRPPXXX",1]
[null,null,null,null,null,null,null,null,"Deutsche Bank AG","Euroclear ESES","DEUTDEFFCUS",1]
[null,null,null,null,null,null,null,null,"DZ Bank AG","Deutsche Bundesbank","GENODEFFXXX",1]
[null,null,null,null,null,null,null,null,"Euroclear Bank SA/NV","Euroclear ESES","MGTCBEBE",1]
[null,null,null,null,null,null,null,null,"European Central Counterparty N.V.","Euroclear ESES","EMCFNL2AXXX",1]
[null,null,null,null,null,null,null,null,"ING Bank","De Nederlandsche Bank","INGBNL2A",1]
[null,null,null,null,null,null,null,null,"LCH.Clearnet","Banque de France","BACPFRPPXXX ",1]
[null,null,null,null,null,null,null,null,"LCH.Clearnet, SA","Euroclear ESES","BACPFRPP",1]
[null,null,null,null,null,null,null,null,"Monte Titoli S.P.A.","Euroclear ESES","MOTIITMMXXX",1]
[null,null,null,null,null,null,null,null,"Parel S.A.","Euroclear ESES","PAREFRPP",1]
[null,null,null,null,null,null,null,null,"Société Générale S.A.","Euroclear ESES","SOGEFRPP",1]
[null,null,null,null,null,null,null,null,"The Bank of New York Mellon SA/NV","Euroclear ESES","IRVTBEBBDCP",1]
[null,null,null,null,null,null,null,null,"Nykredit Bank","Danmarks Nationalbank","NYKBDKKK",1]
[null,null,null,null,null,null,null,"U2A","BNP Paribas SA","Banque de France","BNPAFRPPXXX",1]
[null,null,null,null,null,null,null,null,"Clearstream Banking S.A. (CBL)","Euroclear ESES","CEDELULLLHC",1]
[null,null,null,null,null,null,null,null,"Crédit Agricole CIB","Euroclear ESES","BSUIFRPPXXX",1]
[null,null,null,null,null,null,null,null,"HSBC FRANCE ACTIVITES CLIENTELE ","Banque de France","CCFRFRPPNTX ",1]
[null,null,null,null,null,null,null,null,"Kas Bank N.V.","De Nederlandsche Bank","KASANL2A",1]
[null,null,null,null,null,null,null,null,"LAZARD FRERES BANQUE","Banque de France","LAZPFRPPXXX",1]
[null,null,null,null,null,null,null,null,"Natixis","Banque de France","NATXFRPPXXX - NATXFRPPMAR",1]
[null,null,null,null,null,null,null,null,"NATIXIS (BROKERAGE DIVISION)","Euroclear ESES","IXIRFRPPXXX",1]
[null,null,null,null,null,null,null,null,"Nederlandsche Bank (DE) N.V.","Euroclear ESES","FLORNL2AFEX - FLORNL2AXXX",1]
[null,null,null,null,null,null,null,null,"OeKB CSD GmbH","Oesterreichische Nationalbank","OCSDATWWXXX",1]
[null,null,null,null,null,null,null,null,"Rabobank Nederland","De Nederlandsche Bank","RABONL2UXXX",1]
[null,null,null,null,null,null,null,null,"Skandinaviska Enskilda Banken AB","Suomen Pankki","ESSEFIHX",1]
[null,null,null,null,null,null,"wave 4","A2A","ABN AMRO Clearing Bank N.V.","Clearstream Banking A.G.","ABNCNL2A",1]
[null,null,null,null,null,null,null,null,null,"OeKB CSD GmbH","ABNCNL2A",1]
[null,null,null,null,null,null,null,null,"biw Bank für Investments und Wertpapiere","Deutsche Bundesbank","BIWBDE33XXX",1]
[null,null,null,null,null,null,null,null,"BNP Paribas Securities Services, S.C.A. (Frankfurt)","Clearstream Banking A.G.","PARBDEFFXXX",1]
[null,null,null,null,null,null,null,null,null,"OeKB CSD GmbH","PARBDEFFXXX",1]
[null,null,null,null,null,null,null,null,"CACEIS Bank Deutschland GmbH","Clearstream Banking A.G.","FMBKDEMM",1]
[null,null,null,null,null,null,null,null,null,"LuxCSD SA","FMBKDEMM",1]
[null,null,null,null,null,null,null,null,null,"OeKB CSD GmbH","FMBKDEMMGRP ",1]
[null,null,null,null,null,null,null,null,"CACEIS Bank France","Clearstream Banking A.G.","ISAEFRPPXXX",1]
[null,null,null,null,null,null,null,null,"Citibank Europe plc","OeKB CSD GmbH","CITIAT21002 - CITIIE2XXXX ",1]
[null,null,null,null,null,null,null,null,"Citibank Europe plc, Hungarian Branch Office","Központi Elszámolóház és Értéktár Zrt. (KELER)","CITIHUHX",1]
[null,null,null,null,null,null,null,null,"Citigroup Global Markets Deutschland AG","Deutsche Bundesbank","CITIDEFFSEC",1]
[null,null,null,null,null,null,null,null,null,"Clearstream Banking A.G.","CITIDEFFXXX",1]
[null,null,null,null,null,null,null,null,"Clearstream Banking Frankfurt AG","Deutsche Bundesbank","DAKVDEFF",1]
[null,null,null,null,null,null,null,null,"Clearstream Banking S.A.","Clearstream Banking A.G.","CEDELULLXXX",1]
[null,null,null,null,null,null,null,null,null,"LuxCSD SA","CEDELULLXXX",1]
[null,null,null,null,null,null,null,null,"Deutsche Bank AG","Clearstream Banking A.G.","DEUTDEFF",1]
[null,null,null,null,null,null,null,null,null,"OeKB CSD GmbH","DEUTDEFFXXX - DEUTDEFFCUS",1]
[null,null,null,null,null,null,null,null,"Deutsche Wertpapierservice Bank AG","Deutsche Bundesbank","DWPBDEFF",1]
[null,null,null,null,null,null,null,null,"Euroclear Bank SA / NV","Clearstream Banking A.G.","MGTCBEBEECL",1]
[null,null,null,null,null,null,null,null,"Euroclear Bank SA/NV","Clearstream Banking A.G.","MGTCBEBEECL - MGTCBEBEFND ",1]
[null,null,null,null,null,null,null,null,null,"OeKB CSD GmbH","MGTCBEBEECL - MGTCBEBEFND",1]
[null,null,null,null,null,null,null,null,"European Central Counterparty N.V.","Clearstream Banking A.G.","EMCFNL2AXXX",1]
[null,null,null,null,null,null,null,null,null,"OeKB CSD GmbH","EMCFNL2AXXX",1]
[null,null,null,null,null,null,null,null,"HSBC Trinkaus & Burkhardt AG","Deutsche Bundesbank","TUBDDEDD",1]
[null,null,null,null,null,null,null,null,null,"Clearstream Banking A.G.","TUBDDEDD",1]
[null,null,null,null,null,null,null,null,"Intesa Sanpaolo S.p.A.","Clearstream Banking A.G.","BCITITMMXXX",1]
[null,null,null,null,null,null,null,null,"LCH.Clearnet SA","Clearstream Banking A.G.","BACPFRPPXXX",1]
[null,null,null,null,null,null,null,null,"LuxCSD S.A.","Banque Centrale du Luxembourg","LUXCLULL",1]
[null,null,null,null,null,null,null,null,"Nova Ljubljanska Banka d.d.","Banka Slovenije","LJBASI2X ",1]
[null,null,null,null,null,null,null,null,"OeKB CSD GmbH","Oesterreichische Nationalbank","OCSDATWWXXX",1]
[null,null,null,null,null,null,null,null,"Parel S.A.","Clearstream Banking A.G.","PAREFRPPXXX /PAREFRPPKCH",1]
[null,null,null,null,null,null,null,null,"SGCIB (Société Générale)","Clearstream Banking A.G.","SOGEFRPPHCM ",1]
[null,null,null,null,null,null,null,null,"SGSS Frankfurt","Clearstream Banking A.G.","SOGEDEFFXXX",1]
[null,null,null,null,null,null,null,null,"SGSS S.p.A.","Clearstream Banking A.G.","TWOSITMMXXX",1]
[null,null,null,null,null,null,null,null,"Société Générale (France)","Clearstream Banking A.G.","SOGEFRPPTIT",1]
[null,null,null,null,null,null,null,null,"Société Générale (London branch)","Clearstream Banking A.G.","SOGEGB22XXX ",1]
[null,null,null,null,null,null,null,null,"Société Générale S.A.","Clearstream Banking A.G.","SOGEDEFFXXX",1]
[null,null,null,null,null,null,null,null,"Société Générale S.A. - Zweigniederlassung Frankfurt","Clearstream Banking A.G.","SOGEDEFF",1]
[null,null,null,null,null,null,null,null,"Société Générale Securities Services S.p.A.","OeKB CSD GmbH","TWOSITMMXXX",1]
[null,null,null,null,null,null,null,null,"The Bank of New York Mellon SA/NV","Clearstream Banking A.G.","IRVTBEBB",1]
[null,null,null,null,null,null,null,null,"Citibank Europe plc ","Clearstream Banking A.G.","CITIIE2XXXX ",1]
[null,null,null,null,null,null,null,"U2A","Banco Popular Español S.A","Banco de España","POPUESMMXXX",1]
[null,null,null,null,null,null,null,null,"Caixabank S.A.","Banco de España","CAIXESBBXXX",1]
[null,null,null,null,null,null,null,null,"CITI Europe plc, pobočka zahraničnej banky","Národná Banka Slovenska","CITISKBASEC",1]
[null,null,null,null,null,null,null,null,"DekaBank","Deutsche Bundesbank","DGZFDEFFXXX",1]
[null,null,null,null,null,null,null,null,"Iberclear","Banco de España","IBRCESMMXXX",1]
[null,null,null,null,null,null,null,null,"ING-DiBa AG","Deutsche Bundesbank","INGDDEFFXXX",1]
[null,null,null,null,null,null,null,null,"KDD - Centralna klirinško depotna družba, delniška družba ","Banka Slovenije","KDDSI22 ",1]
[null,null,null,null,null,null,null,null,"Landesbank Baden-Württemberg","Deutsche Bundesbank","SOLADESTXXX",1]
[null,null,null,null,null,null,"wave Final","A2A","Banco Bilbao Vizcaya Argentaria S.A.","Banco de España","BBVAESMMXXX",1]
[null,null,null,null,null,null,null,null,"Banco Sabadell","Banco de España","BSABESBBXXX",1]
[null,null,null,null,null,null,null,null,"Banco Santander S.A.","Banco de España","BSCHESMMXXX",1]
[null,null,null,null,null,null,null,null,"Bankia S.A.","Banco de España","CAHMESMMXXX",1]
[null,null,null,null,null,null,null,null,"BNP Paribas Securities Services, Sucursal en España","Iberclear","PARBESMXXXX",1]
[null,null,null,null,null,null,null,null,"Caixabank S.A.","Banco de España","CAIXESBBXXX",1]
[null,null,null,null,null,null,null,null,"Citibank Spain","Iberclear","CITIESMXXXX",1]
[null,null,null,null,null,null,null,null,"European Central Counterparty N.V","Iberclear","EMCFNL2AXXX",1]
[null,null,null,null,null,null,null,null,"HSBC France","Iberclear","CCFRFRPPXXX",1]
[null,null,null,null,null,null,null,null,"Iberclear","Banco de España","IBRCESMMXXX",1]
[null,null,null,null,null,null,null,null,"Latvijas Banka ","Nasdaq CSD SE","LACBLV2XXXX ",1]
[null,null,null,null,null,null,null,null,"LCH.Clearnet, SA","Iberclear","BACPFRPPXXX",1]
[null,null,null,null,null,null,null,null,"Lietuvos Bankas ","Nasdaq CSD SE","LIABLT2X ",1]
[null,null,null,null,null,null,null,null,"Nasdaq CSD","Latvijas Banka","LCDELV22XXX ",1]
[null,null,null,null,null,null,null,null,null,"Eesti Pank","LCDELV22XXX",1]
[null,null,null,null,null,null,null,null,"Credit Agricole Corporate & Investment Bank","Iberclear","BSUIFRPPXXX, BSUIFRPPDMA",1]
[null,null,null,null,null,null,null,null,"LCH Limited","Iberclear","LCHLGB2EXXX",1]
[null,null,null,null,null,null,null,null,"Barclays Bank plc","Iberclear","BARCGB22XXX",1]
[null,null,null,null,null,null,null,null,"Nasdaq CSD ","Lietuvos Bankas","LCDELV22XXX",1]
[null,null,null,null,null,null,null,"U2A","ABANCA CORPORACION BANCARIA S.A ","Banco de España","CAGLESMMVIG",1]
[null,null,null,null,null,null,null,null,"BANCA MARCH, S.A.","Banco de España","BMARES2MXXX",1]
[null,null,null,null,null,null,null,null,"BANCO ALCALA S.A.","Banco de España","ALCLESMMXXX",1]
[null,null,null,null,null,null,null,null,"BANCO CASTILLA LA MANCHA S.A ","Banco de España","CECAESMM105",1]
[null,null,null,null,null,null,null,null,"BANCO COOPERATIVO ESPAÑOL, S.A. ","Banco de España","BCOEESMMXXX",1]
[null,null,null,null,null,null,null,null,"BANCO DE CAJA DE ESPAÑA DE INVERSIONES, SALAMANCA Y SORIA, S.A. ","Banco de España","CSPAES2L108",1]
[null,null,null,null,null,null,null,null,"BANCO INVERSIS S.A. ","Banco de España","INVLESMMXXX",1]
[null,null,null,null,null,null,null,null,"Banco Popular Español ","Banco de España","POPUESMMXXX",1]
[null,null,null,null,null,null,null,null,"BANKINTER S.A. ","Banco de España","BKBKESMMXXX",1]
[null,null,null,null,null,null,null,null,"BME Clearing S.A.U.","Banco de España","MEFFESBBXXX",1]
[null,null,null,null,null,null,null,null,"BME Clearing S.A.U. COLATERAL","Banco de España","MEFFESBBRRR",1]
[null,null,null,null,null,null,null,null,"BME Clearing S.A.U. CONTADO RENTA VARIABLE","Banco de España","MEFFESBBVVV",1]
[null,null,null,null,null,null,null,null,"CAJA DE ARQUITECTOS, S.COOP.DE CREDITO ","Banco de España","CASDESBBXXX",1]
[null,null,null,null,null,null,null,null,"CAJA DE CRÉDRITO DE LOS INGENIEROS, S.C.C. ","Banco de España","CDENESBBXXX",1]
[null,null,null,null,null,null,null,null,"CECABANK S.A ","Banco de España","CECAESMMXXX",1]
[null,null,null,null,null,null,null,null,"Danske Bank (Hamburg branch)","Deutsche Bundesbank","DABADEHHXXX",1]
[null,null,null,null,null,null,null,null,"EBN BANCO DE NEGOCIOS S.A. ","Banco de España","PROAESMMXXX",1]
[null,null,null,null,null,null,null,null,"Eesti Pank","Nasdaq CSD SE","EPBEEE2X",1]
[null,null,null,null,null,null,null,null,"EVO BANCO S.A.U","Banco de España","EVOBESMMXXX",1]
[null,null,null,null,null,null,null,null,"HAITONG BANK, S.A ","Banco de España","ESSIESMMXXX",1]
[null,null,null,null,null,null,null,null,"IBERCAJA BANCO, S.A ","Banco de España","CAZRES27ZXXX",1]
[null,null,null,null,null,null,null,null,"KUTXABANK S.A ","Banco de España","BASKES2BXXX",1]
[null,null,null,null,null,null,null,null,"LABORAL KUTXA ","Banco de España","CLPEES2MXXX",1]
[null,null,null,null,null,null,null,null,"LIBERBANK, S.A. ","Banco de España","CECAESMM048",1]
[null,null,null,null,null,null,null,null,"RBC INVESTOR SERVICES ESPAÑA S.A.U. ","Banco de España","BVALESMMXXX",1]
[null,null,null,null,null,null,null,null,"RENTA 4 BANCO, S.A.","Banco de España","RENBESMMXXX",1]
[null,null,null,null,null,null,null,null,"UNICAJA BANCO S.A","Banco de España","UCJAES2MXXX",1]
[null,null,null,null,null,null,"wave other","A2A","BNP Paribas Securities Services","SIX SIS Ltd.","PARBCHZZ ",1]
[null,null,null,null,null,null,null,null,"Clearstream Banking S.A.","Centrálny depozitár cenných papierov SR, a.s.","CEDELULLXXX",1]
[null,null,null,null,null,null,null,null,"Euroclear Bank SA/NV","Euroclear Finland Oy","MGTCBEBEECL",1]
[null,null,null,null,null,null,null,null,"Euroclear Finland Ltd","Suomen Pankki","APKEFIHHXXX - APKEFIHHATP",1]
[null,null,null,null,null,null,null,null,"European Central Counterparty N.V.","Euroclear Finland Oy","EMCFNL2AXXX",1]
[null,null,null,null,null,null,null,null,"Caceis Bank Italy Branch","Monte Titoli S.p.A.","ISAEITMM",1]
[null,null,null,null,null,null,null,null,"KBC Securities N.V.","National Bank of Belgium","KBSEBEBB ",1]
[null,null,null,null,null,null,null,null,"J.P. Morgan Securities plc ","Iberclear","PARBESMXXXX",1]
[null,null,null,null,null,null,null,"U2A","Danske Bank Plc","Suomen Pankki","DABAFIHHXXX",1]
[null,null,null,null,null,null,null,null,"OP Corporate Bank Plc","Suomen Pankki","OKOYFIHHXXX",1]
[null,null,null,null,null,null,"wave DKK","A2A","Citibank Europe plc","Danmarks Nationalbank","CITIDKKXXXX",1]
[null,null,null,null,null,null,null,null,null,"VP Securities A/S","CITIIE2XXXX, CITIGB2LXXX",1]
[null,null,null,null,null,null,null,null,"Euroclear Bank SA/NV     ","VP Securities A/S","MGTCBEBEECL",1]
[null,null,null,null,null,null,null,null,"European Central Counterparty N.V.        ","VP Securities A/S","EMCFNL2AXXX",1]
[null,null,null,null,null,null,null,null,"Nasdaq Clearing AB","Danmarks Nationalbank","OMECSESSNOC",1]
[null,null,null,null,null,null,null,null,"Skandinaviska Enskilda Banken, Danmark, Filial AF Skandinaviska Enskilda Banken AB(PUBL.), Sverige","Danmarks Nationalbank","ESSEDKKK",1]
[null,null,null,null,null,null,null,"U2A","Danske Bank A/S","Danmarks Nationalbank","DABADKKKXXX",1]
[null,null,null,null,null,null,null,null,"Euroclear Bank SA/NV","Danmarks Nationalbank","MGTCBEBET20 ",1]
[null,null,null,null,null,null,null,null,"European Central Counterparty N.V.","Danmarks Nationalbank","EMCFNL2AXXX",1]
[null,null,null,null,null,null,null,null,"Nykredit Bank","Danmarks Nationalbank","NYKBDKKK",1]
[null,null,null,null,null,null,null,null,"Nordea Danmark, filial af Nordea Bank AB (Publ)","Danmarks Nationalbank","NDEADKKKXXX",1]
[null,null,null,null,null,null,null,null,"Jyske Bank A/S","Danmarks Nationalbank","JYBADKKK",1]
[null,null,null,null,null,null,null,null,"Sydbank A/S","Danmarks Nationalbank","SYBKDK22",1]

{"sheet":"Dataset","index":2,"n_rows":263,"n_cols":29,"rows_kept":263,"cut":false,"hidden":true,"merged":[]}
[null,null,null,null,null,null,null,null,"Information on DCPs on the securities side and on the DCA Holders (cash side) from the official declarations collected by CSDs and NCBs"]
[null,null,null,null,null,null,null,null,"2015-02-17 DCP declaration process and change management.docx"]
[null,null,null,null,null,"Changes since last update:",null,null,null,"2018-11-19",null,"update by extending formula to bottom line of dataset ->",{"$f":"\"Thus far, \"&TEXT(SUM(1/COUNTIF(K19:K260,K19:K260)),\"00\")&\" institutions announced \"&ROWS(K19:K260)&\" direct connections through \"&COUNTIF(A40:A59,\">0\")&\" CSDs and \"&COUNTIF(D40:D61,\">0\")&\" NCBs:\"","v":"Thus far, 165 institutions announced 242 direct connections through 16 CSDs and 17 NCBs:"}]
[null,null,null,null,null,"Banco Popular Portugal, S.A deleted as A2A DCP for Interbolsa ",null,null,null,null,null,null,null,"A2A mode","U2A mode"]
[null,null,null,null,null,null,null,null,null,null,null,null,"Wave 1",{"$f":"TEXT(COUNTIFS($L:$L,$D31,$J:$J,$B$31,$M:$M,$F$31),\"00\")&\" on the securities side and \"&TEXT(COUNTIFS($L:$L,$D31,$J:$J,$B$31,$M:$M,$F$32),\"00\")&\" on the cash side.\"","v":"14 on the securities side and 18 on the cash side."},{"$f":"COUNTIFS($L:$L,$D31,$J:$J,$B$32,$M:$M,$F$31)&\" on the securities side and \"&COUNTIFS($L:$L,$D31,$J:$J,$B$32,$M:$M,$F$32)&\" on the cash side.\"","v":"2 on the securities side and 5 on the cash side."}]
[null,null,null,null,null,null,null,null,null,null,null,null,"Wave 2",{"$f":"TEXT(COUNTIFS($L:$L,$D32,$J:$J,$B$31,$M:$M,$F$31),\"00\")&\" on the securities side and \"&TEXT(COUNTIFS($L:$L,$D32,$J:$J,$B$31,$M:$M,$F$32),\"00\")&\" on the cash side.\"","v":"15 on the securities side and 26 on the cash side."},{"$f":"COUNTIFS($L:$L,$D32,$J:$J,$B$32,$M:$M,$F$31)&\" on the securities side and \"&COUNTIFS($L:$L,$D32,$J:$J,$B$32,$M:$M,$F$32)&\" on the cash side.\"","v":"3 on the securities side and 5 on the cash side."}]
[null,null,null,null,null,null,null,null,null,null,null,null,"Wave 3",{"$f":"TEXT(COUNTIFS($L:$L,$D33,$J:$J,$B$31,$M:$M,$F$31),\"00\")&\" on the securities side and \"&TEXT(COUNTIFS($L:$L,$D33,$J:$J,$B$31,$M:$M,$F$32),\"00\")&\" on the cash side.\"","v":"14 on the securities side and 10 on the cash side."},{"$f":"COUNTIFS($L:$L,$D33,$J:$J,$B$32,$M:$M,$F$31)&\" on the securities side and \"&COUNTIFS($L:$L,$D33,$J:$J,$B$32,$M:$M,$F$32)&\" on the cash side.\"","v":"4 on the securities side and 8 on the cash side."}]
[null,null,null,null,null,null,null,null,null,null,null,null,"Wave 4",{"$f":"TEXT(COUNTIFS($L:$L,$D34,$J:$J,$B$31,$M:$M,$F$31),\"00\")&\" on the securities side and \"&TEXT(COUNTIFS($L:$L,$D34,$J:$J,$B$31,$M:$M,$F$32),\"00\")&\" on the cash side.\"","v":"34 on the securities side and 08 on the cash side."},{"$f":"COUNTIFS($L:$L,$D$34,$J:$J,$B$32,$M:$M,$F$31)&\" on the securities side and \"&COUNTIFS($L:$L,$D$34,$J:$J,$B$32,$M:$M,$F$32)&\" on the cash side.\"","v":"0 on the securities side and 8 on the cash side."}]
[null,null,null,null,null,null,null,null,null,null,null,null,"Wave Final",{"$f":"TEXT(COUNTIFS($L:$L,$D$35,$J:$J,$B$31,$M:$M,$F$31),\"00\")&\" on the securities side and \"&TEXT(COUNTIFS($L:$L,$D$35,$J:$J,$B$31,$M:$M,$F$32),\"00\")&\" on the cash side.\"","v":"10 on the securities side and 09 on the cash side."},{"$f":"COUNTIFS($L:$L,$D$35,$J:$J,$B$32,$M:$M,$F$31)&\" on the securities side and \"&COUNTIFS($L:$L,$D$35,$J:$J,$B$32,$M:$M,$F$32)&\" on the cash side.\"","v":"1 on the securities side and 26 on the cash side."}]
[null,null,null,null,null,null,null,null,null,null,null,null,"Wave DKK",{"$f":"TEXT(COUNTIFS($L:$L,$D$36,$J:$J,$B$31,$M:$M,$F$31),\"00\")&\" on the securities side and \"&TEXT(COUNTIFS($L:$L,$D$36,$J:$J,$B$31,$M:$M,$F$32),\"00\")&\" on the cash side.\"","v":"03 on the securities side and 03 on the cash side."},{"$f":"COUNTIFS($L:$L,$D$36,$J:$J,$B$32,$M:$M,$F$31)&\" on the securities side and \"&COUNTIFS($L:$L,$D$36,$J:$J,$B$32,$M:$M,$F$32)&\" on the cash side.\"","v":"0 on the securities side and 7 on the cash side."}]
[null,null,null,null,null,null,null,null,null,null,null,null,"Wave Other",{"$f":"TEXT(COUNTIFS($L:$L,$D$37,$J:$J,$B$31,$M:$M,$F$31),\"00\")&\" on the securities side and \"&TEXT(COUNTIFS($L:$L,$D$37,$J:$J,$B$31,$M:$M,$F$32),\"00\")&\" on the cash side.\"","v":"06 on the securities side and 02 on the cash side."},{"$f":"COUNTIFS($L:$L,$D$37,$J:$J,$B$32,$M:$M,$F$31)&\" on the securities side and \"&COUNTIFS($L:$L,$D$37,$J:$J,$B$32,$M:$M,$F$32)&\" on the cash side.\"","v":"0 on the securities side and 2 on the cash side."}]
[]
[null,null,null,null,null,null,null,null,null,null,null,null,null,null,"tdcp"]
[]
[]
[]
[null,"Deadlines for declarations"]
[null,null,null,null,null,null,null,null,"DCPs","Connection mode","Institution ","Migration wave","Business side","CSD/NCB","BICs","Who issues certificate?","Certification","Column1","Evidence received","4CB confirmation","Certification letter sent (DCPs)\nE-mail sent (DCA Holders) or NCBs","Re-certification for release 1.1 (by 15.02.2016)","Link to Emails and Evidences in DARWIN ","Institution Official Name ","Postal Address","Salutation\n(Ms/Mr)","First name","Last name","Position in the company"]
[null,null,"A2A mode","U2A mode",null,null,null,null,null,"A2A","Unicredit S.p.A.","wave 1","cash","Banca d'Italia","UNCRITMM",null,"YES","cash","17.03.2015","20.04.2015","E-mail to Banca d'Italia 27.04.15","ok","https://darwin.escb.eu/livelink/livelink?func=ll&objid=107012804&objAction=browse&sort=name","Unicredit S.p.A.","mauro.romaniello@unicredit.eu ","Mr","Mauro","Romaniello","Project Manager"]
[null,"Wave 1","2014-03-03","2014-12-03",null,null,null,null,null,"A2A","UBS Deutschland AG","wave 1","cash","Deutsche Bundesbank","UBSWDEFFXXX",null,"YES","cash","31.03.2015","31.03.2015","E-mail to BUBA 20.04.15","ok","https://darwin.escb.eu/livelink/livelink?func=ll&objId=118186923&objAction=browse&sort=name&viewType=1"]
[null,"Wave 2","2014-09-19","2015-06-19",null,null,null,null,null,"A2A","The Bank of New York Mellon SA/NV (Frankfurt branch)","wave 1","cash","Deutsche Bundesbank","BNYMDEFXXXX",null,"YES","cash&securities","17.04.2015","17.04.2015","E-mail to BUBA 20.04.15","Required","https://darwin.escb.eu/livelink/livelink?func=ll&objId=107019599&objAction=browse&sort=name&viewType=1"]
[null,"Wave 3","2015-02-23","2015-11-23",null,null,null,null,null,"A2A","The Bank of New York Mellon SA/NV","wave 4","securities","Clearstream Banking A.G.","IRVTBEBB",null,"YES",null,null,null,null,"N/A",null,null,"The Bank of New York Mellon SA/NV\n46 Rue Montoyerstraat\nB-1000 Brussels\nBelgium","Mr. ","Arved","Meyer"]
[null,"Wave 4","2015-10-09","2016-04-11",null,null,null,null,null,"A2A","The Bank of New York Mellon SA/NV","wave 3","securities","Euroclear ESES","IRVTBEBBDCP","ECB","yes",null,null,null,null,"N/A"]
[null,"Wave F.","2016-03-14","2016-12-13",null,null,null,null,null,"A2A","The Bank of New York Mellon SA/NV","wave 1","securities","Monte Titoli S.p.A.","IRVTBEBBDCP - BNYMDEFXXXX",null,"YES",null,"27.03.2015","24.04.2015",null,"ok","https://darwin.escb.eu/livelink/livelink?func=ll&objId=107019599&objAction=browse&viewType=1"]
[null,"Wave DKK","2018-05-01","2018-05-01",null,null,null,null,null,"A2A","Caceis Bank Italy Branch","wave other","securities","Monte Titoli S.p.A.","ISAEITMM",null,"Certified via Caceis France",null,null,null,null,null,null,"CACEIS BANK ITALY BRANCH       ","PIAZZA CAVOUR 2, 20121, MILANO, ITALY                               ","Mr","Giorgio","Solcia","Managing Director"]
[null,null,null,null,null,null,null,null,null,"A2A","Euroclear Bank SA/NV     ","wave DKK","securities","VP Securities A/S","MGTCBEBEECL",null,"YES",null,"Already certified"]
[null,null,null,null,null,null,null,null,null,"A2A","Citibank Europe plc","wave DKK","securities","VP Securities A/S","CITIIE2XXXX, CITIGB2LXXX",null,"YES",null,"Already certified"]
[null,null,null,null,null,null,null,null,null,"A2A","European Central Counterparty N.V.        ","wave DKK","securities","VP Securities A/S","EMCFNL2AXXX",null,"YES",null,"Already certified"]
[null,null,null,null,null,null,null,null,null,"U2A","Nykredit Bank","wave DKK","cash","Danmarks Nationalbank","NYKBDKKK",null,"YES",null,"2018-06-21","2018-06-29","2018-07-25",null,null,"Nykredit","Henrik Fibæk-Mikkelsen, e-mail: hfmi@nykredit.dk, phone: +45 44 55 11 80","Mr","Jorn","Strunge","Chief Specialist"]
[null,"Connection modes",null,"Migration wave",null,"Business side",null,null,null,"U2A","Nordea Danmark, filial af Nordea Bank AB (Publ)","wave DKK","cash","Danmarks Nationalbank","NDEADKKKXXX",null,null,null,"2018-09-11","2018-09-11","2018-09-11",null,null,null,"Helgeshøj Alle 33, PO Box 850,0900 Købenbenhavn K","Ms","Tina ","Halberg","Expert Service Operations Officer"]
["mode","A2A","wave","wave 1","side","securities",null,null,null,"U2A","Euroclear Bank SA/NV","wave DKK","cash","Danmarks Nationalbank","MGTCBEBET20 ",null,"YES",null,"Already certified",null,null,null,null,null,"1 Boulevard du Roi Albert II , 1210 Brussels, Belgium           ","Ms","Françoise","Baguet","Network Manager  - Françoise Baguet - +3223264667 - francoise.baguet@euroclear.com "]
[null,"U2A",null,"wave 2",null,"cash",null,null,null,"U2A","Danske Bank A/S","wave DKK","cash","Danmarks Nationalbank","DABADKKKXXX",null,"YES",null,"Already certified",null,null,null,null,null,"Holmens Kanal 2-12, DK-1092 Copenhagen K","Ms","Susanne","Bertram ","Senior Client Supporter, Liquidity & FX Money Market Settlement"]
[null,null,null,"wave 3",null,null,null,null,null,"U2A","Jyske Bank A/S","wave DKK","cash","Danmarks Nationalbank","JYBADKKK",null,"YES",null,"2018-06-21","2018-06-26","2018-07-25",null,null,null,"Vestergade 8-16, 8600  Silkeborg, Denmark","Ms","Erna Vad","Andersen","Backoffice specialist - erna-vad@jyskebank.dk"]
[null,null,null,"wave 4",null,null,null,null,null,"A2A","Citibank Europe plc","wave DKK","cash","Danmarks Nationalbank","CITIDKKXXXX",null,"YES",null,"Already certified",null,null,null,null,null,"1 North Wall Quay, D1 Dublin, Ireland","Mr","Richard","Scavetta","T2S Programme Director"]
[null,null,null,"wave Final",null,null,null,null,null,"A2A","Skandinaviska Enskilda Banken, Danmark, Filial AF Skandinaviska Enskilda Banken AB(PUBL.), Sverige","wave DKK","cash","Danmarks Nationalbank","ESSEDKKK",null,"YES",null,"Already certified",null,null,null,null,null,"Snellmaninaukio, PO Box 160, 00101 Helsinki\n","Mr","Jari","Toivonen","Adviser - 00358 50 5681555, t2service@bof.fi"]
[null,null,null,"wave DKK",null,null,null,null,null,"A2A","Nasdaq Clearing AB","wave DKK","cash","Danmarks Nationalbank","OMECSESSNOC",null,"YES",null,"2018-08-28","2018-08-28","2018-09-10",null,null,null,"Tullvaktsvägen 15, 10578 Stockholm Sweden","Mr","Juuso","Korhonen","Chief Operating Officer"]
[null,null,null,"wave other",null,null,null,null,null,"U2A","European Central Counterparty N.V.","wave DKK","cash","Danmarks Nationalbank","EMCFNL2AXXX",null,"YES",null,"Already certified",null,null,null,null,null,"Strawinskylaan 1847, Tower I, Level 3, 1077XX Amsterdam, The Netherlands","Mr","Erik ","Westerling","Infrastructural Liaison Manager "]
[null,null,null,null,null,null,null,null,null,"U2A","Sydbank A/S","wave DKK","cash","Danmarks Nationalbank","SYBKDK22",null,"YES",null,"2018-06-21","2018-06-28","2018-07-25",null,null,null,"Peberlyk 4, 6200 Aabenraa, Denmark","Ms","Tine","Jakobsen","Assistant Vice President, Markets and Treasury Services"]
["count","CSD","CSD","count","NCB",null,null,null,null,"U2A","Swiss Euro Clearing Bank GmbH","wave 1","cash","Deutsche Bundesbank","SECGDEFFEUR",null,"YES","cash","24.03.2015","25.03.2015","E-mail to BUBA 20.04.15","ok","https://darwin.escb.eu/livelink/livelink?func=ll&objId=118225852&objAction=browse&sort=name&viewType=1"]
[{"$f":"COUNTIF(N:N,B40)","v":2},"Bank of Greece Securities Settlement System (BOGS)",null,{"$f":"COUNTIF(N:N,E40)","v":10},"Banca d'Italia","NCB",null,null,null,"A2A","Société Générale Securities Services S.p.A.","wave 1","cash","Banca d'Italia","TWOSITMM",null,"YES ","cash & securities","25.03.2015","27.03.2015",null,"ok","https://darwin.escb.eu/livelink/livelink?func=ll&objId=118112038&objAction=browse&viewType=1","Société Générale Securities Services S.p.A.","Azzurra.Ciraci@sgss.socgen.it","Ms","Azzurra","Ciraci","Project Manager"]
[1,"Centrálny depozitár cenných papierov SR, a.s.",null,1,"Banca Nationala Romaniei",null,null,null,null,"A2A","Société Générale Securities Services S.p.A.","wave 1","securities","Monte Titoli S.p.A.","TWOSITMMXXX - TWOSITM1BBH - TWOSITM1UCI - TWOSITM1CFE - TWOSITM1CHI - TWOSITM1CIB - TWOSITM1FCN - TWOSITM1FMB - TWOSITM1PAR - TWOSITM1RAV - TWOSITM1RIM - TWOSITM1SGL - TWOSITM1SMI - TWOSITM1BPL - TWOSITM1SGP",null,"YES",null,"18.03.2015","14.04.2015",null,"ok","https://darwin.escb.eu/livelink/livelink?func=ll&objId=117910565&objAction=browse&viewType=1"]
[23,"Clearstream Banking A.G.",null,36,"Banco de España",null,null,null,null,"A2A","Société Générale Securities Services S.p.A.","wave 1","securities","SIX SIS Ltd.","TWOSITMMXXX",null,"YES",null,null,null,null,"N/A"]
[1,"Depozitarul Central S.A.",null,18,"Banco de Portugal",null,null,null,null,"A2A","Société Générale Securities Services S.p.A.","wave 4","securities","OeKB CSD GmbH","TWOSITMMXXX",null,"YES",null,null,null,null,"N/A"]
[3,"Nasdaq CSD SE",null,1,"Bank of Greece",null,null,null,null,"A2A","Société Générale S.A. - Zweigniederlassung Frankfurt","wave 4","securities","Clearstream Banking A.G.","SOGEDEFF",null,"YES",null,null,null,null,"N/A",null,"Société Générale S.A. - Zweigniederlassung Frankfurt","Neue Mainzer Strasse 46-50\n60311 Frankfurt am Main","Mr","Jean-Louis","Jegou","Chief Operating Officer"]
[17,"Euroclear ESES",null,2,"Banka Slovenije",null,null,null,null,"A2A","Société Générale S.A.","wave 4","securities","Clearstream Banking A.G.","SOGEDEFFXXX",null,"YES",null,null,null,null,"N/A",null,"Société Générale S.A.","Perspective Defense\n75886 Paris Cedex 18\nFrance","Mr","Philippe","Bellande","Global Head of Clearing & Settlement"]
[2,"Euroclear Finland Oy",null,4,"Banque centrale du Luxembourg",null,null,null,null,"A2A","Société Générale S.A.","wave 3","securities","Euroclear ESES","SOGEFRPP","ECB","yes",null,null,null,null,"N/A"]
[9,"Iberclear",null,13,"Banque de France",null,null,null,null,"A2A","Société Générale (London branch)","wave 4","securities","Clearstream Banking A.G.","SOGEGB22XXX ",null,"YES",null,null,null,null,"N/A",null,"Société Générale (London branch)","41, Tower Hill\nEC3N 4 SG\nLondon\nU.K.","Mr","Justin","Graham","Head of London Global Cash"]
[9,"Interbolsa",null,0,"Bulgarska Narodna Banka",null,null,null,null,"A2A","Société Générale (France)","wave 4","securities","Clearstream Banking A.G.","SOGEFRPPTIT",null,"YES",null,null,null,null,"N/A",null,"Société Générale (France)","Perspective Defense\n75886 Paris Cedex 18\nFrance","Mr","Philippe","Bellande","Global Head of Clearing & Settlement"]
[0,"KDD - Centralna klirinško depotna družba, d.d.",null,0,"Central Bank of Cyprus",null,null,null,null,"A2A","Société Générale","wave 1","cash","Banque de France","SOGEFRPPTIT ",null,"YES","cash","30.03.2015","01.04.2015",null,"N/A","https://darwin.escb.eu/livelink/livelink?func=ll&objId=107020845&objAction=browse&sort=name&viewType=1","Société Générale","75886  PARIS CEDEX 18","M. ","Gérald","IMBRATTA","SPOC T2S"]
[1,"Központi Elszámolóház és Értéktár Zrt. (KELER)",null,0,"Central Bank of Ireland",null,null,null,null,"U2A","Skandinaviska Enskilda Banken AB","wave 3","cash","Suomen Pankki","ESSEFIHX",null,"YES",null,null,null,null,"N/A",null,null,"PL 630, 00101 Helsinki ","Mr","Paivi","Tormanen"]
[2,"LuxCSD SA",null,0,"Central Bank of Malta",null,null,null,null,"A2A","SGSS S.p.A.","wave 4","securities","Clearstream Banking A.G.","TWOSITMMXXX",null,"YES",null,null,null,null,"N/A",null,"SGSS S.p.A.","Via Benigno Crespi 19/a\n20159 Milano",null,"Jeanne","Flament Duvoux","Chief Executive Officer"]
[14,"Monte Titoli S.p.A.",null,11,"Danmarks Nationalbank",null,null,null,null,"A2A","SGSS Frankfurt","wave 4","securities","Clearstream Banking A.G.","SOGEDEFFXXX",null,"YES",null,null,null,null,"N/A",null,"SGSS Frankfurt","Neue Mainzer Strasse 46-50\n60311 Frankfurt am Main","Mr","Jean-Louis","Jegou","Chief Operating Officer"]
[8,"National Bank of Belgium Securities Settlement System (NBB-SSS)",null,6,"De Nederlandsche Bank",null,null,null,null,"A2A","SGCIB (Société Générale)","wave 4","securities","Clearstream Banking A.G.","SOGEFRPPHCM ",null,"YES",null,null,null,null,"N/A",null,"SGCIB (Société Générale)","17, cours Valmy\n92987 Paris La Defense Cedex\nFrance","Mr","Massimiliano ","Notarianni","GBIS Network Management"]
[8,"OeKB CSD GmbH",null,18,"Deutsche Bundesbank",null,null,null,null,"A2A","Banco Santander S.A.","wave Final","cash","Banco de España","BSCHESMMXXX",null,"Yes",null,"2017-05-02","2017-05-02",null,null,null,"TARGET2-BE","C/ Alcalá, 48 28014- Madrid Spain","Ms.","Mª José","García Ravassa","Head of TARGET2-BE Unit"]
[3,"SIX SIS Ltd.",null,1,"Eesti Pank",null,null,null,null,"U2A","Rabobank Nederland","wave 3","cash","De Nederlandsche Bank","RABONL2UXXX","NCB",null,null,null,null,null,"N/A",null,null,"Croes elaan 1 8, 3 524V T Utrecht, the Netherlands",null,null,"Lida Wagensveld Lida.wagensveld@rabob .com +3130712t606\nBas van de Veerdonk Bas.van.de.veerdonk@rabobank.com +31307121240"]
[0,"VP LUX S.à.r.l.",null,1,"Latvijas Banka",null,null,null,null,"A2A","Parel S.A.","wave 4","securities","Clearstream Banking A.G.","PAREFRPPXXX /PAREFRPPKCH",null,"YES",null,null,null,null,"N/A",null,"Parel S.A.","Tour Pacific Est\n11-13 Cours Valmy\n92977 La Defense\nFrance","Mr","Philippe","Brillat","Directeur General"]
[3,"VP Securities A/S",null,1,"Lietuvos Bankas",null,null,null,null,"A2A","Parel S.A.","wave 3","securities","Euroclear ESES","PAREFRPP","ECB","yes",null,null,null,null,"N/A"]
[0,"csd abc",null,1,"Národná Banka Slovenska",null,null,null,null,"U2A","Parel S.A.","wave 1","securities","Monte Titoli S.p.A.","PAREFRPPXXX - PAREFRPPKCH",null,"YES","securities","27.03.2015","14.04.2015",null,"ok","https://darwin.escb.eu/livelink/livelink?func=ll&objId=107027409&objAction=browse&sort=name&viewType=1"]
[null,null,null,0,"Narodowy Bank Polski",null,null,null,null,"U2A","OeKB CSD GmbH","wave 3","cash","Oesterreichische Nationalbank","OCSDATWWXXX","NCB","YES",null,"2015-11-13","2015-11-13",null,"Required","https://darwin.escb.eu/livelink/livelink?func=ll&objId=137953999&objAction=browse&viewType=1",null,"Strauchgasse 3, 1011 Wien, Austria","Mr\nMs","Mag. Peter\nGerlinde","Felsinger\nBiwald, MBA","Director\nCTO (Chief Technical Officer)"]
[null,null,null,7,"National Bank of Belgium",null,null,null,null,"A2A","Novo Banco, S.A.","wave 2","cash","Banco de Portugal","BESCPTPL","NCB","YES","cash","23.12.15","05.01.2016","05.01.2016","N/A"]
[null,null,null,2,"Oesterreichische Nationalbank",null,null,null,null,"A2A","Northern Trust","wave 2","cash","Banque Centrale du Luxembourg","CNORLULXTGT","NCB","YES ","cash& securities","2015-11-05","2015-11-27","2015-11-30","Required","https://darwin.escb.eu/livelink/livelink","Northern Trust Global Services Limited, Luxembourg Branch","6, rue Lou Hemmer, L-1748 Luxembourg","Mr","Eric","Dumont","Head of Financial Control"]
[null,null,null,4,"Suomen Pankki",null,null,null,null,"U2A","Natixis","wave 3","cash","Banque de France","NATXFRPPXXX - NATXFRPPMAR","NCB","YES","cash",null,null,null,"N/A",null,"Natixis","40 avenue des Terroirs de France\n75012 Paris France","Mr","Philippe","BUVOT","Head of Capital markets Back-office Business management"]
[null,null,null,null,null,null,null,null,null,"U2A","National Bank of Belgium","wave 2","securities","National Bank of Belgium Securities Settlement System (NBB-SSS)","ECMSBEBBCCB","ECB","YES",null,null,null,null,"ok",null,null,"Boulevard de Berlaimont 14  BE-1000 Brussels, Belgium","Mr","Peter","Lagaert","Head of Back Office"]
[null,null,null,null,null,null,null,null,null,"A2A","Lietuvos Bankas ","wave Final","securities","Nasdaq CSD SE","LIABLT2X ",null,"YES",null,"2017-07-19","2017-07-19",null,"N/A",null,"Lietuvos bankas","Totorių g. 4,\nLT-01121 Vilnius\nLithuania \n","Mr","Romas ","Mackevicius","Payment Systems Administration Division"]
[null,null,null,null,null,null,null,null,null,"A2A","Morgan Stanley Bank","wave 1","cash","Deutsche Bundesbank","MSFFDEFPGCP - MSFFDEFPXXX ",null,"YES",null,null,null,null,"N/A"]
[null,null,null,null,null,null,null,null,null,"A2A","Monte dei Paschi di Siena","wave 1","cash","Banca d'Italia","PASCITMM",null,"YES","cash","27.03.2015","31.03.2015","E-mail to Banca d'Italia 27.04.15","ok","https://darwin.escb.eu/livelink/livelink?func=ll&objId=107012801&objAction=browse&sort=name&viewType=1","Monte dei Paschi di Siena","paolo.bosio@banca.mps.it","Mr","Paolo ","Bosio","Project Manager"]
[null,null,null,null,null,null,null,null,null,"A2A","LuxCSD S.A.","wave 4","cash","Banque centrale du Luxembourg","LUXCLULL",null,"YES",null,null,null,null,"N/A"]
[null,null,null,null,null,null,null,null,null,"A2A","LCH.Clearnet, SA","wave 1","securities","Monte Titoli S.p.A.","BACPFRPPXXX",null,"YES","cash&securities","13.04.2015","24.04.2015",null,"ok","https://darwin.escb.eu/livelink/livelink?func=ll&objId=107020843&objAction=browse&viewType=1"]
[null,null,null,null,null,null,null,null,null,"A2A","LCH.Clearnet, SA","wave 3","securities","Euroclear ESES","BACPFRPP","ECB","YES","cash",null,null,null,"N/A"]
[null,null,null,null,null,null,null,null,null,"A2A","LCH.Clearnet, SA","wave 2","securities","Interbolsa","BACPFRPPXXX","ECB","YES","cash&securities","23.12.2015","04.01.2016",null,"ok"]
[null,null,null,null,null,null,null,null,null,"A2A","LCH.Clearnet, SA","wave 2","securities","National Bank of Belgium Securities Settlement System (NBB-SSS)","BACPFRPPXXX - BACPFRPPBRU","ECB","YES",null,null,null,null,"N/A",null,null,"18 RUE DU 4 SEPTEMBRE, 75002 Paris","Ms","Angela","D'amico","Operations Manager "]
[null,null,null,null,null,null,null,null,null,"A2A","LCH.Clearnet, SA","wave Final","securities","Iberclear","BACPFRPPXXX",null,"YES",null,null,null,null,"N/A",null,"Banque Centrale De Compensation (Trade Name: Lch.Clearnet, SA)","18 Rue Du Quatre Septembre; 75002 Paris, France","Mr","Laurent","Piau","Head of Operations LCH.Clearnet SA"]
[null,null,null,null,null,null,null,null,null,"U2A","LCH.Clearnet","wave 1","cash","Banque de France","BACPFRPPXXX",null,"YES",null,"30.03.2015","01.04.2015",null,"ok","https://darwin.escb.eu/livelink/livelink?func=ll&objId=107020843&objAction=browse&viewType=1",null,"18 rue du 4-Septembre\n75002 Paris France","Mr","Bruno","CHEDEBOIS","Head of Operations"]
[null,null,null,null,null,null,null,null,null,"A2A","LCH.Clearnet","wave 3","cash","Banque de France","BACPFRPPXXX ","ECB","YES","securities","already certified for wave1",null,null,"N/A",null,null,"18 rue du 4-Septembre\n75002 Paris France","Mr","Bruno","CHEDEBOIS","Head of Operations"]
[null,null,null,null,null,null,null,null,null,"U2A","LAZARD FRERES BANQUE","wave 3","cash","Banque de France","LAZPFRPPXXX","NCB",null,null,null,null,null,"N/A",null,null,"121 boulevard Haussmann\n75008 Paris France","Mr","Didier","DUCHATEAU","Vice President"]
[null,null,null,null,null,null,null,null,null,"U2A","Landesbank Baden-Württemberg","wave 4","cash","Deutsche Bundesbank","SOLADESTXXX",null,"YES",null,null,null,null,"N/A"]
[null,null,null,null,null,null,null,null,null,"A2A","KBC Securities","wave 2","cash","National Bank of Belgium","KBSEBE22","NCB","YES","cash","29.12.2015","08.01.2016","11.01.2016","ok",null,"KBC Securities","Havenlaan 12 1080 Brussel BELGIUM","Mr","Olivier","De Bruyn"]
[null,null,null,null,null,null,null,null,null,"A2A","KBC Bank","wave 2","cash","National Bank of Belgium","KREDBEBB","NCB","YES","cash","29.12.2015","08.01.2016","11.01.2016","ok",null,"KBC Bank","Havenlaan 2 1080 Brussels BELGIUM","Mr","Olivier","De Bruyn"]
[null,null,null,null,null,null,null,null,null,"A2A","KBC Securities N.V.","wave other","cash","National Bank of Belgium","KBSEBEBB ","NCB","YES","cash"]
[null,null,null,null,null,null,null,null,null,"U2A","Kas Bank N.V.","wave 3","cash","De Nederlandsche Bank","KASANL2A","NCB","YES","cash","05.11.2015","10.11.2015","2015-11-12","Required","https://darwin.escb.eu/livelink/livelink?func=ll&objId=107012800&objAction=browse&viewType=1",null,"Nieuwezijds Voorburgwal 225\n1012 RL Amsterdam",null,null,"Johan de Maar johan.de.maar@kasbank.com +31205575103\nJoos Reus joost.reus@kasbank.com +31205572468"]
[null,null,null,null,null,null,null,null,null,"A2A","JP Morgan","wave 2","cash","Deutsche Bundesbank","CHASDEFX","NCB","YES","cash","2015-11-13","2015-11-27","2015-11-30","ok","https://darwin.escb.eu/livelink/livelink"]
[null,null,null,null,null,null,null,null,null,"A2A","Istituto Centrale delle Banche Popolari Italiane S.p.A.","wave 1","cash","Banca d'Italia","CIPBITMM",null,"YES","cash&securities","26.03.2015","27.03.2015",null,"ok","https://darwin.escb.eu/livelink/livelink?func=ll&objId=107011492&objAction=browse&viewType=1","Istituto Centrale delle Banche Popolari Italiane S.p.A.","paolo.callegaro@icbpi.it","Mr","Paolo ","Callegaro","Project Manager"]
[null,null,null,null,null,null,null,null,null,"A2A","Istituto Centrale delle Banche Popolari Italiane S.p.A.","wave 1","securities","Monte Titoli S.p.A.","CIPBITMMXXX",null,"YES",null,"24.03.2015","27.03.2015",null,"ok","https://darwin.escb.eu/livelink/livelink?func=ll&objid=107011492&objAction=browse&sort=name"]
[null,null,null,null,null,null,null,null,null,"A2A","Intesa Sanpaolo S.p.A.","wave 4","securities","Clearstream Banking A.G.","BCITITMMXXX",null,"YES",null,null,null,null,"N/A",null,"Intesa Sanpaolo S.p.A.","Piazza San Carlo\n156 10121 Torino","Mr","Paolo","Ferraroni","Manager of Local Custody"]
[null,null,null,null,null,null,null,null,null,"A2A","Intesa Sanpaolo S.p.A.","wave 1","cash","Banca d'Italia","BCITITMM",null,"YES","cash&securities","26.03.2015","27.03.2015",null,"ok","https://darwin.escb.eu/livelink/livelink?func=ll&objId=107027408&objAction=browse&viewType=1","Intesa Sanpaolo S.p.A.","ivo.angelin@intesasanpaolo.com","Mr","Ivo","Angelin","Project Manager"]
[null,null,null,null,null,null,null,null,null,"A2A","Intesa Sanpaolo S.p.A.","wave 1","securities","Monte Titoli S.p.A.","BCITITMMXXX - BCITITM1T01 - BCITITMMK70",null,"YES",null,"27.03.2015","14.04.2015",null,"ok","https://darwin.escb.eu/livelink/livelink?func=ll&objId=107027408&objAction=browse&viewType=1"]
[null,null,null,null,null,null,null,null,null,"U2A","Interbolsa","wave 2","cash","Banco de Portugal","IBLSPTPP","NCB","YES","cash","2015-01-04","05.01.2016","05.01.2016","ok",null,"INTERBOLSA - Sociedade Gestora de Sistemas de Liquidação e Sistemas Centralizados de Valores Mobiliários, S.A.","Avenida da Boavista, 3433 \n4100-138 Porto \nPortugal","Mr","Rui","de Matos"]
[null,null,null,null,null,null,null,null,null,"U2A","ING-DiBa AG","wave 4","cash","Deutsche Bundesbank","INGDDEFFXXX",null,"YES",null,null,null,null,"N/A"]
[null,null,null,null,null,null,null,null,null,"A2A","ING Belgium","wave 2","cash","National Bank of Belgium","BBRUBEBB","NCB","YES",null,null,null,null,"N/A",null,"ING Belgium","Marnixlaan 24 1000 Brussel BELGIUM","Mr","Pieter","Samyn"]
[null,null,null,null,null,null,null,null,null,"A2A","ING Bank","wave 3","cash","De Nederlandsche Bank","INGBNL2A","NCB","YES",null,null,null,null,"N/A",null,null,"Postbus 1800\n1000 BV AMSTERDAM\nthe Netherlands","Mr.","Michel","Uppelschoten","Bank Treasury"]
[null,null,null,null,null,null,null,null,null,"A2A","Iccrea Banca S.p.A.","wave 1","cash","Banca d'Italia","ICRAITRR",null,"YES","cash&securities","26.03.2015","27.03.2015",null,"ok","https://darwin.escb.eu/livelink/livelink?func=ll&objId=107011179&objAction=browse&viewType=1","Iccrea Banca S.p.A.","pcocuccioni@iccrea.bcc.it","Mr","Pierduilio","Cocuccioni","Project Manager"]
[null,null,null,null,null,null,null,null,null,"A2A","Iccrea Banca S.p.A.","wave 1","securities","Monte Titoli S.p.A.","ICRAITRRXXX",null,"YES",null,"25.03.2015","27.03.2015",null,"ok","https://darwin.escb.eu/livelink/livelink?func=ll&objid=107011179&objAction=browse&sort=name"]
[null,null,null,null,null,null,null,null,null,"U2A","Iberclear","wave 4","cash","Banco de España","IBRCESMMXXX",null,"YES",null,null,null,null,"N/A",null,"TARGET2-BE","C/ Alcalá, 48 28014- Madrid Spain","Ms.","Mª José","García Ravassa","Head of TARGET2-BE Unit"]
[null,null,null,null,null,null,null,null,null,"A2A","HSBC Trinkaus & Burkhardt AG","wave 4","securities","Clearstream Banking A.G.","TUBDDEDD",null,"YES",null,null,null,null,"N/A",null,"HSBC Trinkaus & Burkhardt AG","Königsallee 21/23, 40212 Düsseldorf, Germany ","Mr","Götz","Röhr","HSBC Securities Services"]
[null,null,null,null,null,null,null,null,null,"A2A","HSBC Trinkaus & Burkhardt AG","wave 4","cash","Deutsche Bundesbank","TUBDDEDD",null,"YES",null,null,null,null,"N/A"]
[null,null,null,null,null,null,null,null,null,"U2A","HSBC France","wave 2","cash","Banque de France","CCFRFRPPXXX ","NCB",null,null,null,null,null,null,null,null,"103 Avenue des Champs Elysées 75008 PARIS ","Mr","Messaoud ","HEDJERES "]
[null,null,null,null,null,null,null,null,null,"A2A","Haitong Bank S.A.","wave 2","cash","Banco de Portugal","ESSIPTPL","NCB","YES","cash","23.12.2015","05.01.2016","05.01.2016","N/A"]
[null,null,null,null,null,null,null,null,null,"A2A","European Central Counterparty N.V.","wave 1","cash","De Nederlandsche Bank","EMCFNL2A",null,"YES","cash&securities",null,null,null,"N/A",null,null,"World Trade Center, Tower D, level 11\nStrawinskylaan 1163\n1077 XX AMSTERDAM\nthe Netherlands","Mrs.","Hanneke","Keetelaar","Senior Officer Product Management"]
[null,null,null,null,null,null,null,null,null,"A2A","European Central Counterparty N.V.","wave 4","securities","Clearstream Banking A.G.","EMCFNL2AXXX",null,"YES",null,null,null,null,"N/A",null,"European Central Counterparty N.V.","Apollolaan 150\n1077 BG Amsterdam\nThe Netherlands","Mr","Albert-Jan","Huizing","CTO, Managing Board"]
[null,null,null,null,null,null,null,null,null,"A2A","European Central Counterparty N.V.","wave 1","securities","Monte Titoli S.p.A.","EMCFNL2AXXX",null,"YES",null,"20.03.2015","15.04.2015",null,"ok","https://darwin.escb.eu/livelink/livelink?func=ll&objId=107017379&objAction=browse&viewType=1"]
[null,null,null,null,null,null,null,null,null,"A2A","European Central Counterparty N.V.","wave 3","securities","Euroclear ESES","EMCFNL2AXXX","ECB","YES","securities",null,null,null,"N/A"]
[null,null,null,null,null,null,null,null,null,"A2A","European Central Counterparty N.V.","wave 4","securities","OeKB CSD GmbH","EMCFNL2AXXX",null,"YES",null,null,null,null,"N/A"]
[null,null,null,null,null,null,null,null,null,"A2A","European Central Counterparty N.V.","wave other","securities","Euroclear Finland Oy","EMCFNL2AXXX",null,"YES",null,null,null,null,"N/A",null,"European Central Counterparty N.V. ","Strawinskylaan 1163 - D11\n1077 XX\nAmsterdam","Mr","Albert-Jan","Huizing","CTO, Managing Board"]
[null,null,null,null,null,null,null,null,null,"A2A","Euroclear Finland Ltd","wave other","cash","Suomen Pankki","APKEFIHHXXX - APKEFIHHATP",null,"YES",null,"24.09.15",null,"Email to BoF 21/10/2015","Required",null,null,"Urho Kekkosen katu 5C, 00100 Helsinki, Finland","Ms","Hanna","Vainio","Deputy CEO"]
[null,null,null,null,null,null,null,null,null,"A2A","Euroclear Bank SA/NV","wave 3","securities","Euroclear ESES","MGTCBEBE","ECB","YES","securities",null,null,null,"Required"]
[null,null,null,null,null,null,null,null,null,"A2A","Euroclear Bank SA/NV","wave 2","securities","Interbolsa","MGTCBEBEECL","ECB","YES","cash&securities",null,null,null,"Required"]
[null,null,null,null,null,null,null,null,null,"A2A","Euroclear Bank SA/NV","wave 2","cash","National Bank of Belgium","MGTCBEBE","ECB","YES",null,"08.12.2015","24.12.2015","04.01.2016","N/A","https://darwin.escb.eu/livelink/livelink","Euroclear Bank SA/NV","Boulevard du Roi Albert II 1 1210 Saint-Josse-ten Node BELGIUM","Ms","Katia","Depuydt"]
[null,null,null,null,null,null,null,null,null,"A2A","Euroclear Bank SA/NV","wave 2","securities","National Bank of Belgium Securities Settlement System (NBB-SSS)","MGTCBEBEECL","ECB","YES",null,null,null,null,"N/A",null,null,"BOULEVARD DU ROI ALBERT II 1, B1210 Bruxelles","Ms","Katia","Depuydt","Network Manager"]
[null,null,null,null,null,null,null,null,null,"A2A","Euroclear Bank SA/NV","wave 4","securities","Clearstream Banking A.G.","MGTCBEBEECL - MGTCBEBEFND ",null,"YES",null,null,null,null,"N/A",null,"Euroclear Bank SA/NV","Boulevard du Roi Albert II 1210 Brussel Belgium","Mr","Pierre-Paul","Stacanov","Director - Network Management"]
[null,null,null,null,null,null,null,null,null,"A2A","Euroclear Bank SA/NV","wave 4","securities","OeKB CSD GmbH","MGTCBEBEECL - MGTCBEBEFND",null,"YES",null,null,null,null,"N/A"]
[null,null,null,null,null,null,null,null,null,"A2A","Euroclear Bank SA/NV","wave other","securities","Euroclear Finland Oy","MGTCBEBEECL",null,"YES",null,null,null,null,"N/A",null,"Euroclear Bank SA/NV","1, Boulevard du Roi Albert II\n1210 Brussels\nBelgium","Ms","Marta","Moura","Director - Network Management"]
[null,null,null,null,null,null,null,null,null,"A2A","EuroCCP N.V.","wave 2","securities","Interbolsa","EMCFNL2AXXX","ECB","YES","securities ",null,"Confirmed same Infrastructure as in wave 1",null,"ok"]
[null,null,null,null,null,null,null,null,null,"U2A","Eesti Pank","wave Final","securities","Nasdaq CSD SE","EPBEEE2X",null,"YES",null,"2017-07-19","2017-07-19",null,"N/A",null,null,"Estonia rd 13 \n15095 Tallinn \nEstonia","Ms","Viire","Oll","Expert, Payment and Settlement Systems department"]
[null,null,null,null,null,null,null,null,null,"A2A","DZ Bank AG","wave 3","cash","Deutsche Bundesbank","GENODEFFXXX",null,"YES",null,null,null,null,"N/A"]
[null,null,null,null,null,null,null,null,null,"A2A","Deutsche Wertpapierservice Bank AG","wave 4","cash","Deutsche Bundesbank","DWPBDEFF",null,"YES",null,null,null,null,"N/A"]
[null,null,null,null,null,null,null,null,null,"A2A","Deutsche Bank AG","wave 1","cash","Deutsche Bundesbank","DEUTDEFFXXX",null,"YES","cash&securities","24.03.2015","25.03.2015","E-mail to BUBA 20.04.15","ok","https://darwin.escb.eu/livelink/livelink?func=ll&objId=107012792&objAction=browse&viewType=1"]
[null,null,null,null,null,null,null,null,null,"A2A","Deutsche Bank AG","wave 1","securities","Monte Titoli S.p.A.","DEUTDEFFXXX",null,"YES",null,"22.04.2015","22.04.2015",null,"ok"]
[null,null,null,null,null,null,null,null,null,"A2A","Deutsche Bank AG","wave 4","securities","Clearstream Banking A.G.","DEUTDEFF",null,"YES",null,null,null,null,"N/A",null,"Deutsche Bank AG","Global Transaction Banking\nAlfred-Herrhausen Allee 16-24\n65760 Eschborn\nGermany","Mr","Dieter","Bernhard","Director"]
[null,null,null,null,null,null,null,null,null,"A2A","Deutsche Bank AG","wave 3","securities","Euroclear ESES","DEUTDEFFCUS","ECB","YES","securities",null,null,null,"N/A"]
[null,null,null,null,null,null,null,null,null,"A2A","Deutsche Bank AG","wave 2","securities","Interbolsa","DEUTDEFFXXX","ECB","YES","securities",null,"confirmed validity of certification from wave one, as it is the same infrastructure",null,"N/A"]
[null,null,null,null,null,null,null,null,null,"A2A","Deutsche Bank AG","wave 2","securities","National Bank of Belgium Securities Settlement System (NBB-SSS)","DEUTDEFFCUS","ECB","YES",null,null,null,"confirmed validity of certification from wave one, as it is the same infrastructure (02/11/15)","ok",null,null,"Alfred-Herrhausen-Allee 16-24 \n65760 Eschborn \nGermany ","Ms","Friederieke","Anslinger-Wolf","Vice President "]
[null,null,null,null,null,null,null,null,null,"A2A","Deutsche Bank AG","wave 4","securities","OeKB CSD GmbH","DEUTDEFFXXX - DEUTDEFFCUS",null,"YES",null,null,null,null,"N/A"]
[null,null,null,null,null,null,null,null,null,"U2A","Depozitarul Central S.A.","wave 1","cash","Banca Nationala Romaniei","DECNROBU",null,"YES","cash","20.03.2015","20.03.2015","E-mail to NCB Ro 28.04.15","ok","https://darwin.escb.eu/livelink/livelink?func=ll&objId=117221287&objAction=browse&viewType=1"]
[null,null,null,null,null,null,null,null,null,"U2A","DekaBank","wave 4","cash","Deutsche Bundesbank","DGZFDEFFXXX",null,"YES",null,null,null,null,"N/A"]
[null,null,null,null,null,null,null,null,null,"A2A","Crédit Agricole SA","wave 3","cash","Banque de France","AGRIFRPPXXX","NCB","YES",null,null,null,null,"N/A",null,"Crédit Agricole SA","BP 48   83 boulevard des chênes\n78042  GUYANCOURT CX   FR","M.","Bruno","BERNARD","SPOC T2S"]
[null,null,null,null,null,null,null,null,null,"A2A","Crédit Agricole CIB","wave 3","cash","Banque de France","BSUIFRPPDMA ","NCB","YES",null,null,null,null,"N/A",null,"Crédit Agricole CIB","9 quai du President Paul Doumer\n92920 PARIS LA DEFENSE  FR","Ms","Caroline ","GAUME","SPOC T2S"]
[null,null,null,null,null,null,null,null,null,"A2A","Commerzbank","wave 1","cash","Deutsche Bundesbank","COBADEFFXXX",null,"YES","cash","24.03.2015","25.03.2015","E-mail to BUBA 20.04.15","ok","https://darwin.escb.eu/livelink/livelink?func=ll&objId=107023162&objAction=browse&viewType=1"]
[null,null,null,null,null,null,null,null,null,"U2A","Clearstream Banking S.A. (CBL)","wave 2","cash","Banque Centrale du Luxembourg","CEDELULL","NCB","YES","cash","23.10.2015","10.12.2015","14.12.2015","ok","https://darwin.escb.eu/livelink/livelink","Clearstream Banking SA Luxembourg","Av JF Kennedy, 42 \nL- 1855 - Luxembourg","Mr","Thierry ","Wuidart","Treasury Officer - Senior Expert"]
[null,null,null,null,null,null,null,null,null,"A2A","Clearstream Banking S.A. (CBL)","wave 3","cash","Banque Centrale du Luxembourg","CEDELULL",null,"YES","cash",null,null,null,"N/A",null,"Clearstream Banking SA Luxembourg","Av JF Kennedy, 42 \nL- 1855 - Luxembourg","Mr","Thierry ","Wuidart","Treasury Officer - Senior Expert"]
[null,null,null,null,null,null,null,null,null,"A2A","Clearstream Banking S.A. (CBL)","wave 3","securities","Monte Titoli S.p.A.","CEDELULLXXX",null,"YES","securities",null,null,null,"N/A",null,"Clearstream Banking SA Luxembourg","Av JF Kennedy, 42 \nL- 1855 - Luxembourg","Mr","Ernesto","Sau","Network Management EMEA & APAC"]
[null,null,null,null,null,null,null,null,null,"A2A","Clearstream Banking S.A.","wave 4","securities","Clearstream Banking A.G.","CEDELULLXXX",null,"YES",null,"2017-09-27","2017-09-28",null,"N/A",null,"Clearstream Banking S.A.","42 Avenue JF Kennedy\nL-1855 Luxembourg","Ms","Anne-Pascale","Malrechauffe","Executive Vice President\nNetwork Managment"]
[null,null,null,null,null,null,null,null,null,"A2A","Clearstream Banking S.A.","wave 4","securities","LuxCSD SA","CEDELULLXXX",null,"YES",null,null,null,null,"N/A",null,"Clearstream Banking S.A.","42 Avenue JF Kennedy\nL-1855 Luxembourg","Ms","Anne-Pascale","Malrechauffe","Executive Vice President\nNetwork Managment"]
[null,null,null,null,null,null,null,null,null,"A2A","Clearstream Banking Frankfurt AG","wave 4","cash","Deutsche Bundesbank","DAKVDEFF",null,"YES",null,null,null,null,"N/A"]
[null,null,null,null,null,null,null,null,null,"A2A","Citigroup Global Markets Deutschland AG","wave 4","securities","Clearstream Banking A.G.","CITIDEFFXXX",null,"YES",null,null,null,null,"N/A",null,"Citigroup Global Markets Deutschland AG","Reuterweg 16\n60323 Frankfurt am Main","Mr","Dirk","Loscher","Director"]
[null,null,null,null,null,null,null,null,null,"A2A","Citigroup Global Markets Deutschland AG","wave 4","cash","Deutsche Bundesbank","CITIDEFFSEC",null,"YES",null,null,null,null,"N/A"]
[null,null,null,null,null,null,null,null,null,"A2A","Citibank Spain","wave Final","securities","Iberclear","CITIESMXXXX",null,"YES",null,"2015-05-11",null,null,"N/A",null,"Citibank International Limited, Sucursal en España entidad 1474","Ortega y Gasset 29. Madrid; PC: 28006","Mr","Rafael","Gonzalez-Aller Jurado","Securities Country Manager"]
[null,null,null,null,null,null,null,null,null,"A2A","Citibank N.A., Milan Branch","wave 1","cash","Banca d'Italia","CITIITMXSEC",null,"YES","cash&securities","26.03.2015","27.03.2015","11.05.2015","ok","https://darwin.escb.eu/livelink/livelink?func=ll&objId=107019602&objAction=browse&viewType=1","Citibank N.A., Milan Branch","massimo.scordino@citi.com","Mr","Massimo","Scordino","Project Manager"]
[null,null,null,null,null,null,null,null,null,"A2A","Citibank N.A., Milan Branch","wave 1","securities","Monte Titoli S.p.A.","CITIITMXSEC",null,"YES",null,"27.03.2015","31.03.2015","11.05.2015","ok","https://darwin.escb.eu/livelink/livelink?func=ll&objId=107019602&objAction=browse&viewType=1"]
[null,null,null,null,null,null,null,null,null,"A2A","Citibank Europe plc","wave 4","securities","OeKB CSD GmbH","CITIAT21002 - CITIIE2XXXX ",null,"YES ","CITIIE2XXXX new BIC 15Aug17 used with same infrastructure as other BIC",null,null,null,"N/A"]
[null,null,null,null,null,null,null,null,null,"A2A","BNP Paribas Securities Services","wave other","securities","SIX SIS Ltd.","PARBCHZZ "]
[null,null,null,null,null,null,null,null,null,"A2A","Citibank N.A., London branch","wave 1","securities","SIX SIS Ltd.","CITIGB2L",null,"YES",null,null,null,"11.05.2015","N/A"]
[null,null,null,null,null,null,null,null,null,"A2A","Citibank Europe PLC","wave 2","securities","Interbolsa","CITIPTPXXXX","ECB","YES","cash",null,"Confirmed same Infrastructure as in wave 1",null,"N/A"]
[null,null,null,null,null,null,null,null,null,"A2A","Citibank International Plc., Paris","wave 3","cash","Banque de France","CITIFRPPSEC","ECB","YES","cash",null,"confirmed validity of certification from wave one, as it is the same infrastructure (09/10/15)",null,"Required",null,"Citibank International Plc., Paris","Citicenter 19, Le Parvis\n92073 PARIS LA DEFENSE  FR","M. ","Michel ","CHAPUT","SPOC T2S"]
[null,null,null,null,null,null,null,null,null,"A2A","Citibank Europe Plc. ","wave 2","securities","National Bank of Belgium Securities Settlement System (NBB-SSS)","CITTGB2LXXX ","ECB","YES","securities",null,"same infrastructure as wave 1",null,"N/A",null,"Citibank International Plc., Belgium Branch","Boulevard Louis Schmidt 29 1040 Bruxelles","Mr","Warren","Thorsen"]
[null,null,null,null,null,null,null,null,null,"A2A","Citibank International Plc. Greece (branch)","wave 1","cash","Bank of Greece","CITIGRAASEC ",null,"YES",null,"27.03.2015","30.03.2015","11.05.2015","ok","https://darwin.escb.eu/livelink/livelink?func=ll&objId=107027414&objAction=browse&viewType=1",null,"Citigroup Centre, Canada Square, Canary Wharf, London E14 5LB, UK","Mr","Keith","Berrett","Director"]
[null,null,null,null,null,null,null,null,null,"A2A","Citibank International Plc. Greece (branch)","wave 1","securities","Bank of Greece Securities Settlement System (BOGS)","CITIGRAAXXX",null,"YES",null,"27.03.2015","13.04.2015","11.05.2015","ok","https://darwin.escb.eu/livelink/livelink?func=ll&objId=107027414&objAction=browse&viewType=1","Citibank International Limited, Greece Branch","Citigroup Centre, Canada Square, Canary Wharf, London E14 5LB, UK","Mr","Keith","Berrett","Director"]
[null,null,null,null,null,null,null,null,null,"A2A","Citibank Europe PLC","wave 3","securities","Euroclear ESES","CITTGB2L","ECB","YES","securities",null,null,null,"N/A"]
[null,null,null,null,null,null,null,null,null,"A2A","Citibank Internacional - Sucursal em Port.","wave 2","cash","Banco de Portugal","CITIPTPXSEC","ECB","YES","cash",null,"confirmed validity of certification from wave one, as it is the same infrastructure (28/12/15)",null,"Required"]
[null,null,null,null,null,null,null,null,null,"A2A","Citibank Europe plc, Hungarian Branch Office","wave 4","securities","Központi Elszámolóház és Értéktár Zrt. (KELER)","CITIHUHX",null,"YES",null,null,null,null,"N/A",null,null,"7 Szabadság tér, Bank Center, Budapest, H-1051","Mr.","Zoltán","Tkálecz","Product and Relationship Manager, Markets and Securities Services"]
[null,null,null,null,null,null,null,null,null,"A2A","Citibank Europe plc, Dublin – Romania Branch","wave 1","securities","Depozitarul Central S.A.","CITIROBUXXX",null,"YES",null,null,null,"11.05.2015","N/A"]
[null,null,null,null,null,null,null,null,null,"A2A","Cassa Centrale Raiffeisen dell’Alto Adige S.p.A.","wave 1","cash","Banca d'Italia","RZSBIT2B",null,"YES","cash","09.04.2015","20.04.2015","E-mail to Banca d'Italia 27.04.15","ok","https://darwin.escb.eu/livelink/livelink?func=ll&objId=107027413&objAction=browse&viewType=1","Cassa Centrale Raiffeisen dell’Alto Adige S.p.A.","rlb-organisation@raiffeisen.it","Mr","Markus ","Cavosi","Project Manager"]
[null,null,null,null,null,null,null,null,null,"U2A","Cariparma Crédit Agricole","wave 1","cash","Banca d'Italia","CRPPIT2P",null,"YES","cash","23.03.2015","16.04.2015","E-mail to Banca d'Italia 27.04.15","ok","https://darwin.escb.eu/livelink/livelink?func=ll&objId=117399263&objAction=browse&viewType=1","Cariparma Crédit Agricole","progettot2s@cariparma.it","Mr","Stefano ","Cortese","Project Manager"]
[null,null,null,null,null,null,null,null,null,"A2A","CAIXA Geral de DepositoS, S.A.","wave 2","cash","Banco de Portugal","CGDIPTPL","NCB","YES","cash","23.12.2015","06.01.2016","06.01.2016","ok"]
[null,null,null,null,null,null,null,null,null,"A2A","CAIXA Económica Montepio Geral","wave 2","cash","Banco de Portugal","MPIOPTPL","NCB","YES","cash","23.12.2015","05.01.2016","05.01.2016","ok"]
[null,null,null,null,null,null,null,null,null,"A2A","CAIXA Central de Credito Agricola Mútuo","wave 2","cash","Banco de Portugal","CCCMPTPL","NCB","YES","cash","23.12.2015","06.01.2016","06.01.2016","ok"]
[null,null,null,null,null,null,null,null,null,"A2A","Caixa Banco de Investimento, S.A.","wave 2","cash","Banco de Portugal","CXBIPTPL","ECB","YES","cash","23.12.2015","05.01.2016",null,"ok"]
[null,null,null,null,null,null,null,null,null,"U2A","Caixa Banco de Investimento, S.A.","wave 2","securities","Interbolsa","CXBIPTPLXXX","ECB","YES","cash&securities","23.12.2015","04.01.2016",null,"ok",null,null,"Rua Barata Salgueiro, 33 - 1269-057 Lisboa","Mr","Luís ","Graça ","Director "]
[null,null,null,null,null,null,null,null,null,"A2A","CACEIS Bank France","wave 2","cash","Banque de France","ISAEFRPPXXX","ECB","YES","cash","28.12.2015","05.01.2016",null,"ok",null,"CACEIS Bank France","1 - 3 place Valhubert\n75013 PARIS   FR","M.","Christophe"," DUPONT","SPOC T2S"]
[null,null,null,null,null,null,null,null,null,"A2A","CACEIS Bank France","wave 3","securities","Euroclear ESES","ISAEFRPP","ECB","YES","securities",null,null,null,"N/A"]
[null,null,null,null,null,null,null,null,null,"A2A","CACEIS Bank France","wave 2","securities","National Bank of Belgium Securities Settlement System (NBB-SSS)","ISAEFRPPXXX","ECB","YES","cash&securities","03.12.2015","11.12.2015",null,"ok","https://darwin.escb.eu/livelink/livelink?func=ll&objId=107023149&objAction=browse&viewType=1",null,"PLACE VALHUBERT 1-3, 75206 Paris Cedex 13","Mr","Brice","Marraud","Head of Business Support Services "]
[null,null,null,null,null,null,null,null,null,"A2A","Citibank Europe plc ","wave 4","securities","Clearstream Banking A.G.","CITIIE2XXXX ",null,"YES",null,null,null,null,"N/A",null,"Citigroup Global Markets Deutschland AG","Reuterweg 16\n60323 Frankfurt am Main","Mr","Dirk","Loscher","Director"]
[null,null,null,null,null,null,null,null,null,"A2A","CACEIS Bank Deutschland GmbH","wave 4","securities","Clearstream Banking A.G.","FMBKDEMM",null,"YES",null,null,null,null,"N/A",null,"CACEIS Bank Deutschland GmbH","Lilienthalallee 34-36\n80939 München","Mr. ","Philippe","Durand","Managing Director"]
[null,null,null,null,null,null,null,null,null,"A2A","CACEIS Bank Deutschland GmbH","wave 3","cash","Deutsche Bundesbank","FMBKDEMM","NCB","YES","cash","12.01.2016",null,null,"N/A"]
[null,null,null,null,null,null,null,null,null,"A2A","CACEIS Bank Deutschland GmbH","wave 4","securities","LuxCSD SA","FMBKDEMM",null,"YES",null,null,null,null,"N/A",null,"CACEIS Bank Deutschland GmbH","Lilienthalallee 34-36\n80939 München","Mr. ","Philippe","Durand","Managing Director"]
[null,null,null,null,null,null,null,null,null,"A2A","CACEIS Bank Deutschland GmbH","wave 4","securities","OeKB CSD GmbH","FMBKDEMMGRP ",null,"YES",null,null,null,null,"N/A"]
[null,null,null,null,null,null,null,null,null,"A2A","BNP Paribas Securities Services, Sucursal en España","wave Final","securities","Iberclear","PARBESMXXXX",null,"YES",null,null,null,null,"N/A",null,null,"C/ RIBERA DEL LOIRA, 28 - MADRID 28042 - SPAIN","Ms","Maria","Jaureguizar","Deputy Head of Operations"]
[null,null,null,null,null,null,null,null,null,"A2A","BNP Paribas Securities Services, S.C.A. (Frankfurt)","wave 4","securities","Clearstream Banking A.G.","PARBDEFFXXX",null,"YES",null,null,null,null,"N/A",null,"BNP Paribas Securities Services, S.C.A. (Frankfurt)","Europa-Allee 12, \n60327 Frankfurt am Main,\nGermany","Ms","Sabine ","Krebs"]
[null,null,null,null,null,null,null,null,null,"A2A","BNP Paribas Securities Services, S.C.A. (Frankfurt)","wave 4","securities","OeKB CSD GmbH","PARBDEFFXXX",null,"YES",null,null,null,null,"N/A"]
[null,null,null,null,null,null,null,null,null,"A2A","BNP Paribas Securities Services, S.C.A.","wave 1","securities","Monte Titoli S.p.A.","PARBITMMXXX - PARBITMM001 - PARBITMM002 - PARBITMM003 - PARBITMM004 - PARBITMM005 - PARBITMM006 - PARBITMM007 - PARBITMM008 - PARBITMM009 - PARBITMM010",null,"YES","cash&securities","01.04.2015","14.04.2015","11.05.2015","ok","https://darwin.escb.eu/livelink/livelink?func=ll&objId=107019597&objAction=browse&viewType=1"]
[null,null,null,null,null,null,null,null,null,"A2A","BNP Paribas Securities Services, S.C.A.","wave 3","securities","Euroclear ESES","PARBFRPP","ECB","YES","securities",null,null,null,"N/A"]
[null,null,null,null,null,null,null,null,null,"A2A","BNP Paribas Securities Services, S.C.A.","wave 2","securities","Interbolsa","PARBFRPPXXX","ECB","YES","securities",null,"Confirmed same Infrastructure as in wave 1",null,"ok"]
[null,null,null,null,null,null,null,null,null,"A2A","BNP Paribas Securities Services, S.C.A.","wave 2","securities","National Bank of Belgium Securities Settlement System (NBB-SSS)","PARBFRPPXXX","ECB","YES",null,null,"Confirmed same Infrastructure as in wave 1",null,"N/A",null,null,"C/O PARIBAS- BLVD LOUIS SCHMIDT 2, 3ème étage, B1040 Bruxelles","Mr","Gil","Vandenbroeck","Product Manager "]
[null,null,null,null,null,null,null,null,null,"A2A","BNP Paribas Securities Services","wave 1","cash","Banque de France","PARBFRPPXXX",null,"YES",null,"30.03.2015","07.04.2015","11.05.2015","ok","https://darwin.escb.eu/livelink/livelink?func=ll&objId=107019597&objAction=browse&viewType=1","BNP Paribas Securities Services","\n9 rue du Débarcadère\n93500 PANTIN    FR","M.","Edouard"," BERTHET","SPOC T2S"]
[null,null,null,null,null,null,null,null,null,"U2A","BNP Paribas SA","wave 3","cash","Banque de France","BNPAFRPPXXX","NCB","YES","cash",null,"Confirmed same Infrastructure as in wave 1",null,"N/A",null,null,"3 rue d'Antin\n75002 Paris France","Mr ","Patrice ","BRAULOTTE","ECB Collateral management\nCentral Treasury Paris"]
[null,null,null,null,null,null,null,null,null,"A2A","BNP Paribas FORTIS","wave 2","cash","National Bank of Belgium","GEBABEBB","NCB","YES","cash","04.11.2015","05.11.2015","06.11.2015","ok","https://darwin.escb.eu/livelink/livelink","BNP Paribas FORTIS","Warandeberg 3 1000 Brussel BELGIUM","Mr","Franki","Thierens"]
[null,null,null,null,null,null,null,null,null,"A2A","biw Bank für Investments und Wertpapiere","wave 4","cash","Deutsche Bundesbank","BIWBDE33XXX",null,"YES","for both A2A and U2A",null,"2017-08-03",null,"N/A"]
[null,null,null,null,null,null,null,null,null,"A2A","Belfius Bank","wave 2","cash","National Bank of Belgium","GKCCBEBB","NCB","YES","cash","2015-11-10","2015-11-12","2015-11-12","ok","https://darwin.escb.eu/livelink/livelink?func=ll&objId=107020848&objAction=browse&viewType=1","Belfius Bank","Boulevard Pacheco 44 1000 Brussel BELGIUM","Mr","Luc","Goossens"]
[null,null,null,null,null,null,null,null,null,"U2A","Bank of Greece","wave 1","securities","Bank of Greece Securities Settlement System (BOGS)","BNGRGRAA072",null,"YES","cash","23.03.2015","24.03.2015",null,"ok","https://darwin.escb.eu/livelink/livelink?func=ll&objId=117314402&objAction=browse&sort=name&viewType=1"]
[null,null,null,null,null,null,null,null,null,"A2A","BANIF - Banco de Investimento, SA","wave 2","cash","Banco de Portugal","BNFIPTPL","NCB","YES","cash","2015-12-28",null,null,"ok"]
[null,null,null,null,null,null,null,null,null,"A2A","Banco Santander Totta, S.A.","wave 2","cash","Banco de Portugal","TOTAPTPL","ECB","YES","cash","23.12.2015","05.01.2016",null,"ok"]
[null,null,null,null,null,null,null,null,null,"U2A","Banco Santander Totta, S.A.","wave 2","securities","Interbolsa","TOTAPTPLXXX","ECB","YES",null,"2015-12-23","04.01.2016",null,"ok",null,null,"Centro Totta - Rua da Mesquita nº6, Torre B, 2º Andar, Porta A. \n1070-238 Lisboa","Ms","Rita ","Roque ","Head of Custody and Securities Services Portugal "]
[null,null,null,null,null,null,null,null,null,"U2A","Banco Sabadell","wave 1","cash","Banco de España","BSABESBBXXX",null,null,null,null,null,null,"N/A",null,"TARGET2-BE","C/ Alcalá, 48 28014- Madrid Spain","Ms","Mª José","García Ravassa","Head of TARGET2-BE Unit"]
[null,null,null,null,null,null,null,null,null,"A2A","Banco Portugues de Gestao","wave 2","cash","Banco de Portugal","BPGPPTPL","NCB","YES","cash","23.12.2015","05.01.2016","05.01.2016","ok"]
[null,null,null,null,null,null,null,null,null,"A2A","Banco Popular Portugal, S.A.","wave 2","cash","Banco de Portugal","CRBNPTPL","ECB","YES","cash&securities","23.12.2015","06.01.2016","06.01.2016","ok"]
[null,null,null,null,null,null,null,null,null,"U2A","Banco Popular Español S.A","wave 4","cash","Banco de España","POPUESMMXXX",null,"YES",null,null,null,null,"N/A",null,"TARGET2-BE","C/ Alcalá, 48 28014- Madrid Spain","Ms.","Mª José","García Ravassa","Head of TARGET2-BE Unit"]
[null,null,null,null,null,null,null,null,null,"A2A","Banco Popolare Società Cooperativa","wave 1","cash","Banca d'Italia","BAPPIT22",null,"YES","cash","23.03.2015","16.04.2015","E-mail to Banca d'Italia 27.04.15","Required","https://darwin.escb.eu/livelink/livelink?func=ll&objId=106960264&objAction=browse&viewType=1","Banco Popolare Società Cooperativa","gianni.mazzocchi@sgsbp.it","Mr","Gianni ","Mazzocchi","Project Manager"]
[null,null,null,null,null,null,null,null,null,"A2A","Banco Invest, SA","wave 2","cash","Banco de Portugal","IVVSPTPL","NCB","YES","cash","23.12.2015","06.01.2016","06.01.2016","ok"]
[null,null,null,null,null,null,null,null,null,"A2A","Banco de Investimento Global, S.A.","wave 2","cash","Banco de Portugal","BDIGPTPL","NCB","YES","cash","23.12.2015","05.01.2016","05.01.2016","ok"]
[null,null,null,null,null,null,null,null,null,"A2A","Banco Comercial Portugues, S.A.","wave 2","cash","Banco de Portugal","BCOMPTPL","NCB","YES","cash","23.12.2015","05.01.2016","05.01.2016","ok"]
[null,null,null,null,null,null,null,null,null,"A2A","Banco BPI SA","wave 2","cash","Banco de Portugal","BBPIPTPL","NCB","YES","cash","23.12.2015","06.01.2016","06.01.2016","ok"]
[null,null,null,null,null,null,null,null,null,"A2A","Banco BIC Portugal","wave 2","cash","Banco de Portugal","BPNPPTPL","NCB","YES","cash","23.12.2015","05.01.2016","05.01.2016","ok"]
[null,null,null,null,null,null,null,null,null,"A2A","Agência de gestão da tesouraria e da dívida pública, IGCP-EPE","wave 2","cash","Banco de Portugal","IGCPPTPL","NCB","YES","cash","23.12.2015","06.01.2016","06.01.2016","ok"]
[null,null,null,null,null,null,null,null,null,"A2A","ABN AMRO Clearing Bank N.V.","wave 3","cash","De Nederlandsche Bank","ABNCNL2A","ECB","YES","cash","2015-11-16","03.12.2015",null,"29.12.2015","https://darwin.escb.eu/livelink/livelink",null,"Gustav Mahlerlaan 10 | 1082PP Amsterdam | The Netherlands ","Mr.","Luuk","Godefrooij","Program Manager"]
[null,null,null,null,null,null,null,null,null,"A2A","ABN AMRO Clearing Bank N.V.","wave 3","securities","Euroclear ESES","ABNCNL2A","ECB","YES","securities",null,null,null,"N/A"]
[null,null,null,null,null,null,null,null,null,"A2A","ABN AMRO Clearing Bank N.V.","wave 2","securities","Monte Titoli S.p.A.",null,"ECB","YES","cash&securities",null,null,null,"ok"]
[null,null,null,null,null,null,null,null,null,"A2A","ABN AMRO Clearing Bank N.V.","wave 2","securities","National Bank of Belgium Securities Settlement System (NBB-SSS)","ABNCNL2AXXX","ECB","YES",null,"29.12.2015","29.12.2015",null,"ok",null,null,"Gustav Mahlerlaan 10, 1082 PP Amsterdam ","Mr","Gijs","Korsmit","Network Manager"]
[null,null,null,null,null,null,null,null,null,"A2A","ABN AMRO Clearing Bank N.V.","wave 4","securities","Clearstream Banking A.G.","ABNCNL2A",null,"YES",null,null,null,null,"N/A",null,"ABN AMRO Clearing Bank N.V.","P.O. Box 283, \n1000 EA Amsterdam","Ms","Monique","Verhoef","Network Managment"]
[null,null,null,null,null,null,null,null,null,"A2A","ABN AMRO Clearing Bank N.V.","wave 4","securities","OeKB CSD GmbH","ABNCNL2A",null,"YES",null,null,null,null,"N/A"]
[null,null,null,null,null,null,null,null,null,"U2A","ABN AMRO Bank N.V.","wave 2","cash","De Nederlandsche Bank","ABNANL2AXXX","ECB","YES",null,null,null,null,"ok",null,null,"Gustav Mahlerlaan 10\nLocatie C03-08\n1082 PP Amsterdam",null,null,"D. Rosendahl dennis.rosendahl@nl.abnamro.com 020-6282585\nC.N.M. Deckers John.deckers@nl.abnamro.com\n06-51301702"]
[null,null,null,null,null,null,null,null,null,"A2A","Nova Ljubljanska Banka d.d.","wave 4","cash","Banka Slovenije","LJBASI2X ",null,"YES",null,"2017-01-16","2017-01-16",null,null,null,null,"Trg republike 2, 1520 Ljubljana ","Mr","Krešimir ","Zebić","Advisor "]
[null,null,null,null,null,null,null,null,null,"A2A","Caixabank S.A.","wave Final","cash","Banco de España","CAIXESBBXXX",null,"Yes",null,"2017-05-05","2017-05-15",null,null,null,"TARGET2-BE","C/ Alcalá, 48 28014- Madrid Spain","Ms.","Mª José","García Ravassa","Head of TARGET2-BE Unit"]
[null,null,null,null,null,null,null,null,null,"U2A","Caixabank S.A.","wave 4","cash","Banco de España","CAIXESBBXXX",null,"YES",null,null,null,null,null,null,"TARGET2-BE","C/ Alcalá, 48 28014- Madrid Spain","Ms.","Mª José","García Ravassa","Head of TARGET2-BE Unit"]
[null,null,null,null,null,null,null,null,null,"A2A","Nasdaq CSD","wave Final","cash","Latvijas Banka","LCDELV22XXX ",null,"YES",null,null,null,null,null,null,"Latvian CSD ","Valnu str 1, Riga, LV-1050, Latvia   ","Mr.","Raitis ","Vancans ","Head of Clearing and Settlement"]
[null,null,null,null,null,null,null,null,null,"A2A","Nasdaq CSD","wave Final","cash","Eesti Pank","LCDELV22XXX",null,"YES",null,null,null,null,null,null,"Estonian CSD","Tartu St 2, Tallinn 10145 ESTONIA","Ms.","Kristi","Sisa","Managing Director"]
[null,null,null,null,null,null,null,null,null,"A2A","Bankia S.A.","wave Final","cash","Banco de España","CAHMESMMXXX",null,"Yes",null,"2017-05-05","2017-05-15",null,null,null,"TARGET2-BE","C/ Alcalá, 48 28014- Madrid Spain","Ms.","Mª José","García Ravassa","Head of TARGET2-BE Unit"]
[null,null,null,null,null,null,null,null,null,"A2A","Iberclear","wave Final","cash","Banco de España","IBRCESMMXXX",null,"Yes",null,"As per Bco de España in wave 4",null,"N/A",null,null,"TARGET2-BE","C/ Alcalá, 48 28014- Madrid Spain","Mª José","García Ravassa","Head of TARGET2-BE Unit","Head of TARGET2-BE Unit"]
[null,null,null,null,null,null,null,null,null,"A2A","Banco Sabadell","wave Final","cash","Banco de España","BSABESBBXXX",null,"Yes",null,"2017-05-05","2017-05-15",0,null,null,"TARGET2-BE","C/ Alcalá, 48 28014- Madrid Spain","Mª José","García Ravassa","Head of TARGET2-BE Unit","Head of TARGET2-BE Unit"]
[null,null,null,null,null,null,null,null,null,"U2A","KDD - Centralna klirinško depotna družba, delniška družba ","wave 4","cash","Banka Slovenije","KDDSI22 ",null,"YES",null,"2017-01-16","2017-01-16",null,null,null,null,"Tivolska 48, 1000 Ljubljana, Slovenija","Mr.","Mr. Iztok Kovač",null,"General Manager"]
[null,null,null,null,null,null,null,null,null,"U2A","CITI Europe plc, pobočka zahraničnej banky","wave 4","cash","Národná Banka Slovenska","CITISKBASEC",null,"YES"]
[null,null,null,null,null,null,null,null,null,"U2A","Banco Bilbao Vizcaya Argentaria S.A.","wave 2","cash","Banco de España","BBVAESMMXXX",null,"Yes",null,"2017-05-17","2017-05-18",null,null,null,"TARGET2-BE","C/ Alcalá, 48 28014- Madrid Spain","Mª José","García Ravassa","Head of TARGET2-BE Unit","Head of TARGET2-BE Unit"]
[null,null,null,null,null,null,null,null,null,"A2A","Banco Bilbao Vizcaya Argentaria S.A.","wave Final","cash","Banco de España","BBVAESMMXXX",null,"Yes ",null,"2017-05-17","2017-05-18",null,null,null,"TARGET2-BE","C/ Alcalá, 48 28014- Madrid Spain","Mª José","García Ravassa","Head of TARGET2-BE Unit","Head of TARGET2-BE Unit"]
[null,null,null,null,null,null,null,null,null,"A2A","LCH.Clearnet SA","wave 4","securities","Clearstream Banking A.G.","BACPFRPPXXX",null,null,null,null,null,null,null,null,"LCH Clearnet","18, rue du Quatre Septembre, 75002 Paris France","Mr","Christophe Hemon",null,"CEO"]
[null,null,null,null,null,null,null,null,null,"U2A","HSBC FRANCE ACTIVITES CLIENTELE ","wave 3","cash","Banque de France","CCFRFRPPNTX ",null,null,null,null,null,null,null,null,null,null,"75002 Paris","Messaoud ","HEDJERES "]
[null,null,null,null,null,null,null,null,null,"A2A","CACEIS Bank France","wave 4","securities","Clearstream Banking A.G.","ISAEFRPPXXX",null,"YES",null,null,null,null,null,null,"CACEIS Bank France","1-3, place Valhubert  75013 Paris France","Ms","Louise ","Tete","louise.tete@caceis.com"]
[null,null,null,null,null,null,null,null,null,"A2A","OeKB CSD GmbH","wave 4","cash","Oesterreichische Nationalbank","OCSDATWWXXX",42321,"YES",null,null,null,null,null,null,"Strauchgasse 3, 1011 Wien, Austria","Mr\nMs","Mag. Peter\nGerlinde","Felsinger\nBiwald, MBA","Director\nCTO (Chief Technical Officer)"]
[null,null,null,null,null,null,null,null,null,"A2A","Euroclear Bank SA / NV","wave 4","securities","Clearstream Banking A.G.","MGTCBEBEECL",null,"YES"]
[null,null,null,null,null,null,null,null,null,"A2A","Crédit Agricole SA","wave 3","securities","Euroclear ESES","AGRIFRPPXXX",null,"YES"]
[null,null,null,null,null,null,null,null,null,"U2A","Crédit Agricole CIB","wave 3","securities","Euroclear ESES","BSUIFRPPXXX",null,"YES"]
[null,null,null,null,null,null,null,null,null,"U2A","Clearstream Banking S.A. (CBL)","wave 3","securities","Euroclear ESES","CEDELULLLHC",null,"YES"]
[null,null,null,null,null,null,null,null,null,"U2A","Nederlandsche Bank (DE) N.V.","wave 3","securities","Euroclear ESES","FLORNL2AFEX - FLORNL2AXXX",null,"YES"]
[null,null,null,null,null,null,null,null,null,"A2A","Monte Titoli S.P.A.","wave 3","securities","Euroclear ESES","MOTIITMMXXX",null,"YES"]
[null,null,null,null,null,null,null,null,null,"U2A","NATIXIS (BROKERAGE DIVISION)","wave 3","securities","Euroclear ESES","IXIRFRPPXXX"]
[null,null,null,null,null,null,null,null,null,"A2A","European Central Counterparty N.V","wave Final","securities","Iberclear","EMCFNL2AXXX",null,"YES",null,"2015-05-08",null,null,null,null,"European Central Counterparty N.V","World Trade Center | Tower D, Level 11, Strawinskylaan 1163, 1077 XX, Amsterdam, Netherlands","Mr","Hanneke","Keetelaar","Senior Officer Product Management\nhanneke.keetelaar@euroccp.com"]
[null,null,null,null,null,null,null,null,null,"A2A","Nasdaq CSD ","wave Final","cash","Lietuvos Bankas","LCDELV22XXX",null,"YES",null,"2017-07-26",null,null,null,null,"Lithuanian CSD","Business cenyter K29, Konstitucijos avenue 29 LT-08105 Vilnius","Ms","Dalia ","Jasulaityte","President"]
[null,null,null,null,null,null,null,null,null,"A2A","Credit Agricole Corporate & Investment Bank","wave Final","securities","Iberclear","BSUIFRPPXXX, BSUIFRPPDMA",null,"YES","Incorrect evidence 5 Jul 2017 - again 11 Jul 2017","04/07/2017 - 11 Jul 2017 - 13-Jul-17","2017-07-14",null,null,null,"CREDIT AGRICOLE CORPORATE &INVESTMENT BANK","12, Place des Etats Unis CS 70052 92547 Montrouge Cedex","Mr","Francis","Lepori","Head of Confirmations and Payments\naudrey.milano@ca-cib.com"]
[null,null,null,null,null,null,null,null,null,"A2A","Barclays Bank plc","wave Final","securities","Iberclear","BARCGB22XXX",null,"YES",null,"2017-07-04","2017-07-04",null,null,null,"Citibank International Limited, Sucursal en España entidad 1474","Ortega y Gasset 29. Madrid; PC: 28006","Mr","Manuel "," Pineda","Securities Country Manager"]
[null,null,null,null,null,null,null,null,null,"A2A","HSBC FRANCE","wave Final","securities","Iberclear","CCFRFRPPXXX",null,"YES","Incorrect evidence 5 Jul 2017 - again 11 Jul 2017","05/07/2017 - 11Jull 2017 - 13-Jul-17","2017-07-13",null,null,null,"HSBC FRANCE","103 Avenue Des CHAMPS Elysees – PARIS 75008","Mr","Isabelle","Fourrier","Head of Fixed IncomeFixed, FXMM & Client Operations – Market Operations\nisabelle.fourrier@hsbc.fr"]
[null,null,null,null,null,null,null,null,null,"A2A","J.P. Morgan Securities plc ","wave other","securities","Iberclear","PARBESMXXXX",null,"YES",null,"2017-07-04","2017-07-11",null,null,null,"Citibank International Limited, Sucursal en España entidad 1474","Ortega y Gasset 29. Madrid; PC: 28006","Mr","Manuel "," Pineda","Securities Country Manager"]
[null,null,null,null,null,null,null,null,null,"A2A","LCH Limited","wave Final","securities","Iberclear","LCHLGB2EXXX",null,"YES",null,"2017-07-04","2017-07-04",null,null,null,"Citibank International Limited, Sucursal en España entidad 1474","Ortega y Gasset 29. Madrid; PC: 28006","Mr","Manuel "," Pineda","Securities Country Manager"]
[null,null,null,null,null,null,null,null,null,"U2A","BANCA MARCH, S.A.","wave Final","cash","Banco de España","BMARES2MXXX",null,"Yes",null,"2017-05-02","2017-05-02"]
[null,null,null,null,null,null,null,null,null,"U2A","RENTA 4 BANCO, S.A.","wave Final","cash","Banco de España","RENBESMMXXX",null,"Yes",null,"2017-05-05","2017-05-15"]
[null,null,null,null,null,null,null,null,null,"U2A","RBC INVESTOR SERVICES ESPAÑA S.A.U. ","wave Final","cash","Banco de España","BVALESMMXXX",null,"Yes",null,"2017-05-05","2017-05-15"]
[null,null,null,null,null,null,null,null,null,"U2A","BANKINTER S.A. ","wave Final","cash","Banco de España","BKBKESMMXXX",null,"Yes",null,"Bco de España confirmed","2017-05-12"]
[null,null,null,null,null,null,null,null,null,"U2A","BANCO COOPERATIVO ESPAÑOL, S.A. ","wave Final","cash","Banco de España","BCOEESMMXXX",null,"Yes",null,"2017-05-05","2017-05-15"]
[null,null,null,null,null,null,null,null,null,"U2A","EBN BANCO DE NEGOCIOS S.A. ","wave Final","cash","Banco de España","PROAESMMXXX",null,"Yes",null,"2017-05-05","2017-05-15"]
[null,null,null,null,null,null,null,null,null,"U2A","BANCO INVERSIS S.A. ","wave Final","cash","Banco de España","INVLESMMXXX",null,"Yes",null,"2017-05-05","2017-05-15"]
[null,null,null,null,null,null,null,null,null,"U2A","EVO BANCO S.A.U","wave Final","cash","Banco de España","EVOBESMMXXX",null,"Yes",null,"2017-05-05","2017-05-15"]
[null,null,null,null,null,null,null,null,null,"U2A","HAITONG BANK, S.A ","wave Final","cash","Banco de España","ESSIESMMXXX",null,"Yes",null,"2017-05-05","2017-05-15"]
[null,null,null,null,null,null,null,null,null,"U2A","CECABANK S.A ","wave Final","cash","Banco de España","CECAESMMXXX",null,"Yes",null,"2017-05-05","2017-05-15"]
[null,null,null,null,null,null,null,null,null,"U2A","LIBERBANK, S.A. ","wave Final","cash","Banco de España","CECAESMM048",null,"Yes",null,"2017-05-05","2017-05-15"]
[null,null,null,null,null,null,null,null,null,"U2A","ABANCA CORPORACION BANCARIA S.A ","wave Final","cash","Banco de España","CAGLESMMVIG",null,"Yes",null,"2017-05-05","2017-05-15"]
[null,null,null,null,null,null,null,null,null,"U2A","IBERCAJA BANCO, S.A ","wave Final","cash","Banco de España","CAZRES27ZXXX",null,"Yes",null,"2017-05-05","2017-05-15"]
[null,null,null,null,null,null,null,null,null,"U2A","KUTXABANK S.A ","wave Final","cash","Banco de España","BASKES2BXXX",null,"Yes",null,"2017-05-05","2017-05-15"]
[null,null,null,null,null,null,null,null,null,"U2A","UNICAJA BANCO S.A","wave Final","cash","Banco de España","UCJAES2MXXX",null,"Yes",null,"2017-05-05","2017-05-15"]
[null,null,null,null,null,null,null,null,null,"U2A","BANCO CASTILLA LA MANCHA S.A ","wave Final","cash","Banco de España","CECAESMM105",null,"Yes",null,"2017-05-05","2017-05-15"]
[null,null,null,null,null,null,null,null,null,"U2A","BANCO DE CAJA DE ESPAÑA DE INVERSIONES, SALAMANCA Y SORIA, S.A. ","wave Final","cash","Banco de España","CSPAES2L108",null,"Yes",null,"2017-05-05","2017-05-15"]
[null,null,null,null,null,null,null,null,null,"U2A","CAJA DE CRÉDRITO DE LOS INGENIEROS, S.C.C. ","wave Final","cash","Banco de España","CDENESBBXXX",null,"Yes",null,"2017-05-05","2017-05-15"]
[null,null,null,null,null,null,null,null,null,"U2A","LABORAL KUTXA ","wave Final","cash","Banco de España","CLPEES2MXXX",null,"Yes",null,"2017-05-05","2017-05-15"]
[null,null,null,null,null,null,null,null,null,"U2A","CAJA DE ARQUITECTOS, S.COOP.DE CREDITO ","wave Final","cash","Banco de España","CASDESBBXXX",null,"Yes",null,"2017-05-05","2017-05-15"]
[null,null,null,null,null,null,null,null,null,"A2A","Latvijas Banka ","wave Final","securities","Nasdaq CSD SE","LACBLV2XXXX ",null,"YES",null,"2017-07-19","2017-07-19",null,null,null,"Latvijas Banka ","K.Valdemara 2a ","Mr","Jānis","Katkovskis  ","Payment Systems Senior Expert  Telephone  +371 6702 2759  / Janis.katkovskis@bank.lv "]
[null,null,null,null,null,null,null,null,null,"U2A","Danske Bank Plc","wave other","cash","Suomen Pankki","DABAFIHHXXX",null,null,null,null,null,null,null,null,"Danske Bank Plc","Hiililaiturinkuja 2, 00075 Danske Bank, Finland","Mr","Jyrki","Ruotsalainen","Senior Infrastructure Manager"]
[null,null,null,null,null,null,null,null,null,"U2A","OP Corporate Bank Plc","wave other","cash","Suomen Pankki","OKOYFIHHXXX",null,null,null,null,null,null,null,null,"OP Corporate Bank PlcGebhardinaukio 1, 00510 Helsinki, Finland",null,"Ms","Kirsi","Sakki","‎‎Head of Custody"]
[null,null,null,null,null,null,null,null,null,"U2A","Danske Bank (Hamburg branch)","wave Final","cash","Deutsche Bundesbank","DABADEHHXXX",null,"YES",null,null,"2017-04-01"]
[null,null,null,null,null,null,null,null,null,"U2A","BME Clearing S.A.U.","wave Final","cash","Banco de España","MEFFESBBXXX",null,"Yes",null,"2017-05-05","2017-05-15",null,null,null,"TARGET2-BE","C/ Alcalá, 48 28014- Madrid Spain","Mª José","García Ravassa","Head of TARGET2-BE Unit","Head of TARGET2-BE Unit"]
[null,null,null,null,null,null,null,null,null,"U2A","BME Clearing S.A.U. CONTADO RENTA VARIABLE","wave Final","cash","Banco de España","MEFFESBBVVV",null,"Yes",null,"2017-05-05","2017-05-15",null,null,null,"TARGET2-BE","C/ Alcalá, 48 28014- Madrid Spain","Mª José","García Ravassa","Head of TARGET2-BE Unit","Head of TARGET2-BE Unit"]
[null,null,null,null,null,null,null,null,null,"U2A","BANCO ALCALA S.A.","wave Final","cash","Banco de España","ALCLESMMXXX",null,"Yes",null,"2017-08-14","2017-08-14"]
[null,null,null,null,null,null,null,null,null,"A2A","Clearstream Banking S.A.","wave other","securities","Centrálny depozitár cenných papierov SR, a.s.","CEDELULLXXX",null,null,null,"2017-09-27","2017-09-28",null,"N/A",null,"Clearstream Banking S.A.","42 Avenue JF Kennedy\nL-1855 Luxembourg","Mr","Russell ","Callaway","Executive Director"]
[null,null,null,null,null,null,null,null,null,"U2A","BME Clearing S.A.U. COLATERAL","wave Final","cash","Banco de España","MEFFESBBRRR",null,"Yes",null,"2017-05-05","2017-05-15",null,null,null,"TARGET2-BE","C/ Alcalá, 48 28014- Madrid Spain","Mª José","García Ravassa","Head of TARGET2-BE Unit","Head of TARGET2-BE Unit"]
[null,null,null,null,null,null,null,null,null,"A2A","Nykredit Bank","wave 3","cash","Danmarks Nationalbank","NYKBDKKK",null,null,null,null,null,null,null,null,null,"Kalvebod Brygge 47, DK-1780 Copenhagen V, Denmark","Mr","Jorn","Strunge","Chief Specialist"]
[null,null,null,null,null,null,null,null,null,"U2A","Banco Popular Español ","wave Final","cash","Banco de España","POPUESMMXXX",null,"Yes",null,{"$f":"IF(Table1[[#This Row],[Certification]]= \"yes\",\"5 May 2017\",\"\")","v":"5 May 2017"},"Banco de España conf.",null,null,null,"TARGET2-BE","C/ Alcalá, 48 28014- Madrid Spain","Mª José","García Ravassa","Head of TARGET2-BE Unit","Head of TARGET2-BE Unit"]
[]
[null,null,null,null,null,null,null,"Date deleted",null,null,"Deleted DCPs"]
[null,null,null,null,null,null,null,null,null,"A2A","Banco Popular Portugal, S.A.","wave 2","securities","Interbolsa","CRBNPTPLXXX","ECB","YES","securities",null,"Confirmed (as BNP Paribas) same Infrastructure as in wave 1",null,"ok"]